Cogmind - Beta 10.2 @@@ ROGUE MODE // 2021.06.12 @ 12:16:22 Player: CrossedViper Result: Destroyed by P-80 Master with Gamma Rifle Performance ------------- Evolutions (9) 4500 Regions Visited (31) 6200 Robots Destroyed (635) 3175 Value Destroyed (35636) 35636 Prototype IDs (118) 2360 Alien Tech Used (13) 2600 Bonus (29258) 29258 TOTAL SCORE: 83729 Bonus ------- Triggered High Security 1000 High Alert Combat Kills 16042 Follower Combat Kills 2606 Network Hubs Disabled 400 Aligned with FarCom 300 Met Data Miner 300 Met Zhirov 300 Met Warlord at Base 500 MAIN.C Attacked Warlord 500 Warlord Defense Kill 100 A7 Reached Mainframe 300 Met R17 at Cetus 500 Used Core Reset Matrix 3000 Scanned by Researcher 500 Destroyed MAIN.C Guards 500 Met MAIN.C 5000 Destroyed MAIN.C Shell 5000 Friendly Fire -7590 Cogmind --------- Core Integrity 0/1600 Matter 228/800 Energy 47/100 System Corruption 74% Temperature Cool (0) Movement Core (900) Ox17 Location -1/Command Parts ------- > --- POWER (2) -------- (None) > --- PROPULSION (6) --- (None) > --- UTILITY (13) ----- Experimental Coolant Injector High-capacity Storage Unit Experimental Matter Compressor Advanced Armor Integrity Analyzer AEGIS Remote Shield > --- WEAPON (4) ------- Light Antimatter Cannon > --- INVENTORY (12) --- High-capacity Storage Unit Experimental Energy Well (1000) Experimental Energy Well (1000) Experimental Matter Compressor (0) Experimental Terrain Scan Processor AEGIS Remote Shield Transdimensional Reconstructor High-powered Transdimensional Reconstructor High-powered Transdimensional Reconstructor Advanced Micro-nuke Launcher Peak State ------------ > --- POWER ------------ Vortex Chain Reactor > --- PROPULSION ------- Experimental Biometal Heavy Treads High-density Centrium Heavy Treads High-density Centrium Heavy Treads > --- UTILITY ---------- Experimental Cooling System Experimental Cooling System Large Storage Unit High-capacity Storage Unit High-capacity Storage Unit Advanced Armor Integrity Analyzer Experimental Transmission Jammer Heavy Regenerative Plating Thermal Barrier Experimental Force Field Advanced Hacking Suite Advanced Hacking Suite > --- WEAPON ----------- Multirail Multirail Multirail Multirail > --- INVENTORY -------- Light Ion Engine Improved Quantum Reactor Improved Quantum Reactor Armored Heavy Treads Armored Heavy Treads Advanced Heavy Treads Experimental Matter Compressor Experimental Terrain Scan Processor Layered Medium Armor Plating EM Dispersion Field Transdimensional Reconstructor High-powered Transdimensional Reconstructor High-powered Transdimensional Reconstructor Integrity Redistributor Gamma Rifle Multirail Light Antimatter Cannon Graviton Cannon Heavy Shock Bomb Launcher Gamma Bomb Array Sigix Terminator [Rating: 238] Favorites ----------- Power Micro Fission Core Engine Light Ion Engine Power Core Micro Fission Core Reactor Vortex Chain Reactor Propulsion Centrium Heavy Treads Treads Centrium Heavy Treads Wheel Armored Huge Wheel Utility High-capacity Storage Unit Device Experimental Cooling System Storage High-capacity Storage Unit Processor Advanced Armor Integrity Analyzer Hackware Deep Network Scanner Protection Centrium Medium Armor Plating Artifact Phase Armor Weapon Gauss Rifle Energy Gun Gamma Rifle Energy Cannon Cooled Particle Cannon Ballistic Gun Gauss Rifle Ballistic Cannon Graviton Cannon Launcher Shock Bomb Launcher Special Weapon Stasis Projector Impact Weapon Core Stripper Slashing Weapon Power Sword Build | -11 -10 -10 -10 -9 -8 -7 -7 -7 -7 -6 -6 -6 -6 -6 -6 -5 -5 -5 -5 -4 -4 -4 -4 -4 -3 -3 -3 -3 -2 -1 -1 ------- Run | Scr Mat Min Exi Min Mat Fac Low Low Dat Pro Fac Ext Cet Arc Hub Fac Upp Upp War Pro Fac Upp Upp Zhi Pro Res Qua Sec Res Acc Com Slots Evolved 18 | . . . . . 4 2 . . . . 2 . . . . 2 . . . . 2 . . . . 2 . . 2 2 . Power 1 | . . . . . . . . . . . . . . . . 1 . . . . . . . . . . . . . . . Propulsion 4 | . . . . . . . . . . . 1 . . . . 1 . . . . . . . . . . . . 2 . . Utility 11 | . . . . . 3 2 . . . . . . . . . . . . . . 2 . . . . 2 . . . 2 . Weapon 2 | . . . . . 1 . . . . . 1 . . . . . . . . . . . . . . . . . . . . Parts Attached 473 | 5 5 6 19 . 13 16 1 19 2 15 4 15 20 2 6 26 4 1 13 1 13 7 1 14 9 20 66 39 12 34 65 Power 25 | 1 . . 1 . . 1 . . . . . 1 1 1 . 3 . . . . 2 . . 2 . 1 5 2 . . 4 Engine 3 | 1 . . . . . . . . . . . 1 . . . 1 . . . . . . . . . . . . . . . Core 7 | . . . 1 . . 1 . . . . . . . . . 2 . . . . 2 . . . . . 1 . . . . Reactor 15 | . . . . . . . . . . . . . 1 1 . . . . . . . . . 2 . 1 4 2 . . 4 Propulsion 46 | 2 . . 1 . 2 2 . 1 . . 2 . 2 . 1 5 . . . . 2 . . 1 1 1 10 2 3 5 3 Treads 44 | 2 . . 1 . 2 1 . . . . 2 . 2 . 1 5 . . . . 2 . . 1 1 1 10 2 3 5 3 Leg . | . . . . . . . . . . . . . . . . . . . . . . . . . . . . . . . . Wheel 2 | . . . . . . 1 . 1 . . . . . . . . . . . . . . . . . . . . . . . Hover . | . . . . . . . . . . . . . . . . . . . . . . . . . . . . . . . . Flight . | . . . . . . . . . . . . . . . . . . . . . . . . . . . . . . . . Utility 205 | . 5 4 12 . 7 7 . 15 . 13 1 10 5 . 3 10 4 . 8 . 6 5 . 9 4 7 24 14 1 13 18 Device 102 | . . 2 6 . 1 3 . 6 . 7 1 2 1 . . 4 4 . 5 . 2 4 . 4 2 3 17 11 . 8 9 Storage 17 | . 4 . 2 . 1 . . . . . . . . . . . . . 1 . 1 . . 2 . 1 . . . 1 4 Processor 4 | . . . . . . . . . . . . . 1 . . . . . 1 . 1 . . . 1 . . . . . . Hackware 7 | . . . . . . . . . . . . 2 . . 2 . . . . . . . . . . 2 . . . 1 . Protection 72 | . 1 2 4 . 5 4 . 9 . 6 . 6 3 . 1 6 . . 1 . 2 1 . 3 1 1 5 2 1 3 5 Artifact 3 | . . . . . . . . . . . . . . . . . . . . . . . . . . . 2 1 . . . Weapon 197 | 2 . 2 5 . 4 6 1 3 2 2 1 4 12 1 2 8 . 1 5 1 3 2 1 2 4 11 27 21 8 16 40 Energy Gun 45 | 1 . . . . 1 . . . . . . . . . . . . . 1 . . . . . 2 5 13 10 2 1 9 Energy Cannon 11 | . . . 1 . . 1 . . . 1 . . . . . . . . . . . . . 1 . 4 1 . . . 2 Ballistic Gun 87 | 1 . 2 3 . 3 3 . 3 . 1 . 4 8 1 1 7 . 1 4 . 3 1 1 1 2 1 8 5 2 7 14 Ballistic Cannon 14 | . . . . . . . . . . . . . . . . . . . . 1 . . . . . . 1 5 . 2 5 Launcher 34 | . . . . . . 2 1 . 1 . 1 . 4 . 1 1 . . . . . 1 . . . 1 1 1 3 6 10 Special Weapon 1 | . . . . . . . . . . . . . . . . . . . . . . . . . . . . . 1 . . Impact Weapon 1 | . . . . . . . . . . . . . . . . . . . . . . . . . . . 1 . . . . Slashing Weapon 4 | . . . 1 . . . . . 1 . . . . . . . . . . . . . . . . . 2 . . . . Piercing Weapon . | . . . . . . . . . . . . . . . . . . . . . . . . . . . . . . . . Special Melee Weapon . | . . . . . . . . . . . . . . . . . . . . . . . . . . . . . . . . Unidentified Prototypes 54 | . . 2 . . 1 1 . 1 . . . . 3 . . 1 . . 4 1 . . . 7 1 1 17 4 1 1 8 Parts Lost 96 | . . . 4 . 4 4 . 2 . . 1 1 2 . 1 11 1 . . 2 1 . 1 1 5 8 6 2 . 4 35 Power 7 | . . . 1 . . . . . . . . . . . . 2 . . . . . . . . . 1 . . . . 3 Propulsion 13 | . . . 1 . . 1 . . . . . . . . . 2 . . . . . . . . 1 . . . . 2 6 Utility 36 | . . . 1 . 2 3 . 2 . . 1 1 1 . . 3 1 . . . 1 . . . 2 2 3 1 . 1 11 Weapon 40 | . . . 1 . 2 . . . . . . . 1 . 1 4 . . . 2 . . 1 1 2 5 3 1 . 1 15 Highest Loss Streak 25 | . . . 4 . 3 2 . 1 . . 1 1 1 . 1 2 1 . . 2 1 . 1 1 2 4 2 1 . 1 25 Average Slot Usage (%) 85 | . 90 99 98 100 95 94 92 90 92 90 87 87 89 93 93 80 86 88 78 83 80 84 84 81 87 82 75 79 77 77 65 Engine 1 | . 14 14 11 . . . . . . . . 1 . . . 1 . . . . . . . . . . . . . . . Core 4 | . . . 1 14 9 6 7 7 7 7 6 4 . . . 2 11 11 11 11 10 10 10 3 . . 1 . . . . Reactor 2 | . . . . . . . . . . . . . 4 6 6 2 . . . . . . . 6 10 8 4 3 4 4 5 Treads 10 | . 28 28 28 28 17 9 . . . . 6 6 11 13 13 10 11 11 11 11 10 10 10 10 9 9 8 9 13 11 9 Wheel 1 | . . . . . . 2 7 7 7 7 6 6 . . . . . . . . . . . . . . . . . . . Device 9 | . . . 4 14 9 17 7 6 7 6 5 1 . . . . 3 5 8 5 4 10 10 14 18 17 14 18 17 18 17 Storage 11 | . 17 14 13 14 13 15 15 15 15 15 13 13 13 13 13 11 11 11 11 11 10 10 10 10 10 9 9 9 8 11 8 Processor 3 | . . . . . . . . . . . . . 2 6 6 5 5 5 5 5 5 5 5 5 5 7 4 4 4 4 4 Hackware 6 | . . . . . . . . . . . . 11 13 13 18 12 11 11 11 11 10 10 10 5 5 9 9 4 4 7 . Protection 10 | . 1 13 9 . 22 18 30 28 30 28 26 13 12 13 7 6 5 5 . 5 9 5 5 2 6 . 2 6 7 5 6 Energy Gun 1 | . 14 . . . 1 4 . . . . . . . . . . . . 2 2 . . . . 4 6 7 9 7 . 1 Ballistic Gun 15 | . 14 27 24 28 22 14 15 22 19 13 13 23 20 26 26 21 23 23 11 14 14 19 15 15 10 5 4 3 3 10 6 Launcher 1 | . . . . . . 2 6 . 2 3 1 . 4 . . . . . . . . 1 5 1 . . . . . 2 2 Naked Turns . | . . . . . . . . . . . . . . . . . . . . . . . . . . . . . . . . Heaviest Build 192 | 5 37 30 73 73 111 134 130 140 142 145 149 144 136 118 118 131 104 104 101 127 147 124 124 138 138 145 182 192 179 191 180 Greatest Support 265 | 3 40 40 40 40 40 40 28 28 28 28 28 28 80 80 100 160 160 160 160 160 160 150 150 155 155 155 180 180 265 265 210 Greatest Overweight (x) 6 | 1 3 . 1 1 2 6 4 4 5 5 5 6 4 1 5 1 . . . . . . . . 1 . 1 1 . 1 1 Average Overweight (x) 1 | . . . . 1 1 3 4 3 4 4 4 4 1 1 1 . . . . . . . . . . . . . . . . Largest Inventory Capacity 26 | 4 16 10 12 12 20 20 20 20 20 20 20 20 20 20 20 20 20 20 20 20 20 20 20 20 20 20 20 20 20 26 26 Average Capacity 19 | 4 10 10 11 12 15 20 20 20 20 20 20 20 20 20 20 20 20 20 20 20 20 20 20 20 20 20 20 20 20 25 16 Most Carried 26 | 4 13 10 12 7 12 16 18 20 19 17 20 20 20 20 20 19 18 20 20 20 20 20 20 20 20 20 20 20 20 26 21 Average Carried 16 | 1 5 9 10 6 8 12 16 17 15 13 16 19 18 19 19 16 15 19 19 19 18 17 19 15 17 18 19 19 18 22 13 Final Capacity 26 | 4 10 10 12 12 20 20 20 20 20 20 20 20 20 20 20 20 20 20 20 20 20 20 20 20 20 20 20 20 20 26 12 Final Carried 22 | 4 10 10 6 7 10 14 18 19 13 14 20 19 20 20 19 15 17 20 20 20 20 18 20 16 20 19 20 19 19 22 10 Class Distribution -------------------- 25% | Scavenger-Tank 17% | Scavenger-Gunner 9% | Scavenger-Mutant 9% | Mutant 7% | Hauler-Tank 6% | Hauler-Mutant 6% | Hacker-Tank 5% | Hacker-Mutant 5% | Hacker-Gunner Dominant Class ---------------- Mutant | -10/Materials Mutant | -10/Mines Mutant | -10/Exiles Mutant | -9/Mines Mutant | -8/Materials Scavenger-Tank | -7/Factory Hauler-Mutant | -7/Lower Caves Hauler-Tank | -7/Lower Caves Hauler-Mutant | -7/Data Miner Hauler-Mutant | -6/Proximity Caves Hauler-Tank | -6/Factory Hacker-Tank | -6/Extension Hacker-Tank | -6/Cetus Scavenger-Tank | -6/Archives Hacker-Gunner | -6/Hub_04(d) Scavenger-Tank | -5/Factory Scavenger-Gunner | -5/Upper Caves Scavenger-Gunner | -5/Upper Caves Scavenger-Gunner | -5/Warlord Scavenger-Gunner | -4/Proximity Caves Scavenger-Tank | -4/Factory Scavenger-Gunner | -4/Upper Caves Scavenger-Gunner | -4/Upper Caves Scavenger-Mutant | -4/Zhirov Scavenger-Tank | -3/Proximity Caves Scavenger-Gunner | -3/Research Hacker-Mutant | -3/Quarantine Alien-Mutant | -3/Section 7 Scavenger-Tank | -2/Research Scavenger-Tank | -1/Access Alien-Tank | -1/Command Resources | -11 -10 -10 -10 -9 -8 -7 -7 -7 -7 -6 -6 -6 -6 -6 -6 -5 -5 -5 -5 -4 -4 -4 -4 -4 -3 -3 -3 -3 -2 -1 -1 ----------- Run | Scr Mat Min Exi Min Mat Fac Low Low Dat Pro Fac Ext Cet Arc Hub Fac Upp Upp War Pro Fac Upp Upp Zhi Pro Res Qua Sec Res Acc Com Matter Collected 21815 | 135 178 158 234 . 548 571 172 1106 148 544 255 1565 472 450 567 1414 376 271 642 114 446 509 137 381 378 307 1056 1302 250 3557 3572 Remotely 622 | . . . . . . . . . . . . . . . . 266 . . 267 . . . . . . . 89 . . . . Salvage Created 35225 | . 132 189 160 . 712 2008 308 885 27 434 445 646 318 439 1363 2587 480 220 47 120 506 500 78 694 844 1376 3516 1797 558 7305 6531 Parts 1573 | . 7 14 5 . 50 114 17 24 4 21 26 33 16 20 71 117 25 10 1 6 27 19 6 23 40 65 193 94 29 309 187 Haulers Intercepted 12 | . 1 . . . . 1 . . . . . . . . 1 1 . . . . . . . . . 1 2 . . 5 . Recyclers Shooed 12 | . . . . . . 5 . . . . 1 . . . 1 . . . . . . . . . . . . . . 3 2 Parts Field Recycled . | . . . . . . . . . . . . . . . . . . . . . . . . . . . . . . . . Retrieved Matter . | . . . . . . . . . . . . . . . . . . . . . . . . . . . . . . . . Parts Self-Destructed 209 | . . . . . . . 3 19 . 13 . . . . . . 25 9 71 6 . 20 21 . 22 . . . . . . Prevented 48 | . . . . . . . 10 3 . 2 . . . . . . . . 8 3 . 2 3 . 17 . . . . . . Kills | -11 -10 -10 -10 -9 -8 -7 -7 -7 -7 -6 -6 -6 -6 -6 -6 -5 -5 -5 -5 -4 -4 -4 -4 -4 -3 -3 -3 -3 -2 -1 -1 ------- Run | Scr Mat Min Exi Min Mat Fac Low Low Dat Pro Fac Ext Cet Arc Hub Fac Upp Upp War Pro Fac Upp Upp Zhi Pro Res Qua Sec Res Acc Com Combat Hostiles Destroyed 491 | . 2 4 3 . 18 23 4 8 . 6 4 6 5 4 16 34 7 2 1 1 10 10 2 . 12 17 38 27 8 91 128 Melee 2 | . . . 1 . . . . . . . . . . . . . . . . . . . . . . . . . . . 1 Guns 261 | . 2 4 1 . 18 8 . 5 . 1 1 3 1 4 13 30 7 2 1 1 4 3 1 . 7 8 26 14 6 49 41 Cannons 31 | . . . 1 . . . . . . 2 2 3 . . . . . . . . 6 . . . 3 3 . 4 . 2 5 AOE 140 | . . . . . . 12 3 2 . 3 . . 2 . 2 2 . . . . . 7 1 . . . 1 3 . 23 79 Classes Destroyed 29 | . 2 2 1 . 5 5 . 3 . . . . . 1 . 1 . . . . . . . . . . 3 . . 2 4 Worker 39 | . . 1 . . 1 9 . . . . 1 . . . 4 2 . . . . 1 . . . . . 3 . . 11 6 Builder 27 | . . . . . 1 7 . . . . 2 1 . . 1 3 . . . . . . . . . . 3 1 . 8 . Tunneler 2 | . . 1 . . . . . . . . . . . . . . . . . . . . . . . . . . . 1 . Hauler 12 | . 1 . . . . 1 . . . . . . . . 1 1 . . . . . . . . . 1 2 . . 5 . Recycler 12 | . . . . . . 5 . . . . 1 . . . 1 2 . . . . . . . . . . . . . 1 2 Carrier 1 | . . . . . . . . . . . . . . . . . . . . . . . . . . . . . . . 1 Minesweeper 5 | . . . . . . . . 2 . . . . . . . . 1 1 . . . 1 . . . . . . . . . Mechanic 8 | . . . . . . . . . . . . . . . . . . . . . . . . . . . . . . 2 6 Operator 9 | . . . . . . . . . . . . . . 4 2 2 . . . . . . . . . . . . . 1 . Drone 2 | . . . . . . 1 1 . . . . . . . . . . . . . . . . . . . . . . . . Watcher 14 | . . . . . 1 3 . . . . . . 1 . . . . . . . 1 . . . . 1 . . . 5 2 Swarmer 61 | . . . . . 7 6 . 3 . 3 . . 2 . . 4 . . . . . 7 1 . 2 3 . 4 4 14 1 Saboteur 10 | . . . . . . . . . . . . . . . . . . . . . . . . . . . . . . 3 7 Grunt 166 | . 2 4 1 . 7 10 2 3 . . . 2 . . 5 12 3 . 1 . 3 3 . . 4 4 14 6 . 34 46 Brawler 18 | . . . . . . 1 1 . . . . . . . 1 2 . . . . . . . . . . 1 . . 2 10 Duelist 18 | . . . . . . 1 . 1 . . . . . . 2 . . . . . . . . . 1 . 1 . . 5 7 Protector 13 | . . . . . . . . . . . . . . . . . . . . . . . . . . . 1 . . 2 10 Sentry 40 | . . . . . 2 2 . . . 1 1 4 . 4 5 3 . 1 . . 1 . . . 1 3 . 3 2 6 1 Demolisher 1 | . . . . . . . . . . . . . . . . 1 . . . . . . . . . . . . . . . Hunter 43 | . . . . . 2 1 1 . . . 2 . 1 . . 7 3 . . . . . . . . 2 4 4 2 10 4 Programmer 84 | . . . . . . 2 . . . 2 1 . . . 3 5 1 . . . 6 . 1 . 3 5 15 7 . 12 21 Behemoth 6 | . . . . . . . . 1 . . . . . . . . . 1 . 1 . . . . 1 . . . . 2 . Cetus Guard 2 | . . . . . . . . . . . . . 2 . . . . . . . . . . . . . . . . . . S7 Guard 1 | . . . . . . . . . . . . . . . . . . . . . . . . . . . . 1 . . . M Guard 2 | . . . . . . . . . . . . . . . . . . . . . . . . . . . . . . . 2 Enhanced Grunt 8 | . . . . . . . . . . . . . . . . . . . . . . . . 8 . . . . . . . Combat Programmer 2 | . . . . . . . . . . . . . . . . . . . . . . . . . . . . . . . 2 Investigator 2 | . . . . . . . . . . . . . . . . . . . . . . . . . . . . . . . 2 Striker 9 | . . . . . . . . . . . . . . . . . . . . . . . . . . . . . . . 9 Executioner 7 | . . . . . . . . . . . . . . . . . . . . . . . . . . . . . . . 7 Alpha 7 3 | . . . . . . . . . . . . . . . . . . . . . . . . . . . 1 2 . . . Fortress 1 | . . . . . . . . . . . . . . . . . . . . . . . . . . . 1 . . . . Decomposer 1 | . . . . . . . . . . . . . . . . . . 1 . . . . . . . . . . . . . Packrat 2 | . . . . . . . . 1 . . . . . . . . . . . . . 1 . . . . . . . . . Assembled 2 | . . . 2 . . . . . . . . . . . . . . . . . . . . . . . . . . . . Thug 1 | . . . . . . . 1 . . . . . . . . . . . . . . . . . . . . . . . . Butcher 1 | . . . . . . . . . . . . 1 . . . . . . . . . . . . . . . . . . . Guerrilla 2 | . . . . . . . . . . . . 2 . . . . . . . . . . . . . . . . . . . Mutant 2 | . . . . . . . . 1 . . . . . . . . . . . . . . . . . . . . . 1 . Best Kill Streak 34 | . 3 2 2 . 8 18 3 4 1 3 6 3 3 2 9 10 3 1 1 1 2 4 1 . 4 3 8 5 4 22 34 Combat Bots Only 29 | . 2 2 2 . 6 6 3 4 . 3 3 3 2 2 4 8 3 1 1 1 2 4 1 . 4 3 6 4 4 11 29 Max Kills in Single Turn 13 | . 1 1 1 . 1 6 2 2 1 2 1 1 2 1 8 2 1 2 1 1 2 3 1 1 1 1 4 3 2 13 8 Gunslinging 1 | . . . . . . . . . . . . . . . . 1 . . . . . . . . . . 1 . 1 1 1 Exploded 11 | . . . . . . 2 1 2 . 2 . . 2 . 1 1 . . . . . 3 1 . . . 1 3 . 11 7 Melee 1 | . . . 1 . . . . . . . . . . . . . . . . . . . . . . . . . . . 1 Uniques/NPCs Destroyed 3 | . . . 1 . . . . . 1 . . . . . . . . . . . . . . . . . . . . . 1 8R-AWN (-10/Exiles) Data Miner (-7/Data Miner) MAIN.C Shell (-1/Command) Combat | -11 -10 -10 -10 -9 -8 -7 -7 -7 -7 -6 -6 -6 -6 -6 -6 -5 -5 -5 -5 -4 -4 -4 -4 -4 -3 -3 -3 -3 -2 -1 -1 -------- Run | Scr Mat Min Exi Min Mat Fac Low Low Dat Pro Fac Ext Cet Arc Hub Fac Upp Upp War Pro Fac Upp Upp Zhi Pro Res Qua Sec Res Acc Com Damage Taken 46290 | . 41 82 899 . 983 1360 75 534 . 182 284 469 489 304 1349 3627 1231 596 35 694 986 652 365 1027 1510 1281 4912 3481 468 4316 14058 Core 3122 | . . . 151 . 63 123 . 21 . 35 19 4 9 . 126 149 64 63 35 . . 82 63 88 99 48 321 136 44 129 1250 Absorbed by Shields 15712 | . . . . . . . . . . . . 39 272 . . 132 . . . . . . . . . . . 2100 496 4393 8280 Reduced by Siege Mode 1845 | . . . . . . . . . . . . . . . 25 187 53 45 . 58 6 . . . 53 . 197 116 . 194 911 Core Remaining (%) 70 | 100 . . . 39 88 . . . . 74 . . . . 81 . . . . 68 . . . . 71 . . 19 96 . . Volleys Fired 1471 | . 23 11 16 . 58 69 14 41 . 38 22 39 14 24 33 82 17 13 1 10 25 20 13 63 33 71 222 112 13 197 177 Largest 4 | . 2 2 2 . 3 3 1 3 . 3 3 4 4 4 4 4 4 4 4 3 3 4 3 4 4 4 4 4 3 4 4 Hottest 300 | . 60 46 120 . 112 117 36 84 . 86 86 112 112 119 126 140 133 133 171 240 153 125 95 123 203 264 300 300 230 201 300 Shots Fired 3375 | . 44 22 21 . 156 119 14 107 . 49 48 118 29 95 121 278 68 52 4 26 67 48 31 106 110 106 315 268 39 504 410 Gun 2781 | . 44 22 16 . 156 79 . 99 . 14 30 108 16 95 118 269 68 52 4 25 46 42 27 59 86 83 311 218 34 429 231 Cannon 381 | . . . 5 . . 1 . . . 32 11 10 . . . . . . . 1 21 . . 47 24 23 2 46 . 29 129 Launcher 213 | . . . . . . 39 14 8 . 3 7 . 13 . 3 9 . . . . . 6 4 . . . 2 4 5 46 50 Special . | . . . . . . . . . . . . . . . . . . . . . . . . . . . . . . . . Kinetic 2373 | . 23 22 16 . 150 53 . 99 . 14 30 108 16 95 118 269 68 52 3 25 67 42 27 59 73 25 78 109 10 435 287 Thermal 383 | . 21 . 5 . 6 27 . . . 32 11 10 . . . . . . 1 1 . . . . 9 22 158 33 . 1 46 Explosive 51 | . . . . . . . . . . . . . . . . . . . . . . . . . . . . . . 1 50 Electromagnetic 568 | . . . . . . 39 14 8 . 3 7 . 13 . 3 9 . . . . . 6 4 47 28 59 79 126 29 67 27 Robot Hit Streak 84 | . 11 10 2 . 13 18 5 9 . 10 4 23 7 7 27 49 17 13 1 17 13 13 5 16 22 29 46 34 17 33 84 Robot Miss Streak 11 | . 4 3 3 . 3 4 2 11 . 1 4 5 7 7 5 3 2 1 3 2 2 2 2 4 3 3 4 4 5 6 6 Penetration Max 2 | . . . . . 1 1 . . . . . 1 . 1 1 1 . . 1 . 1 . . 1 . . 1 1 . 2 2 Secondary Targets 44 | . . 1 . . 5 1 . . . . . . . . 3 5 1 . . . . 1 . . . . 3 . 2 8 14 Max Gunslinging Chain 2 | . . 1 . . 1 1 . . . . . . . . 1 1 1 . . . . 1 . . . . 1 . 1 1 2 Capacitor 199 | . . . . . . . . . . . . . . . . . . . . . . . . . . 46 153 . . . . Shots Hit Robots 2485 | . 25 15 27 . 106 67 6 61 1 21 19 84 15 74 95 193 48 36 1 21 51 31 16 70 79 85 242 198 29 411 358 Core Hits 1917 | . 7 7 8 . 40 89 14 54 1 11 17 65 21 71 92 128 17 11 2 6 21 21 6 27 27 30 105 69 30 367 553 Critical Hits 109 | . . . 1 . 3 1 . 2 . . 1 3 . 1 4 25 9 2 1 3 3 1 1 2 2 2 8 8 1 12 13 Critical Kills 33 | . . . . . 1 1 . . . . . 2 . . 2 7 3 . . . 1 . 1 . . 2 2 2 . 4 5 Critical Parts Destroyed 68 | . . . 1 . 2 . . 1 . . 1 1 . 1 2 18 6 . 1 1 2 1 . 1 2 . 6 6 1 8 6 Melee Attacks 30 | . . . 23 . . . . . 1 . . . . . . . . . . . . . . . . . 6 . . . . Kinetic 2 | . . . . . . . . . . . . . . . . . . . . . . . . . . . 2 . . . . Impact . | . . . . . . . . . . . . . . . . . . . . . . . . . . . . . . . . Slashing 28 | . . . 23 . . . . . 1 . . . . . . . . . . . . . . . . . 4 . . . . Piercing . | . . . . . . . . . . . . . . . . . . . . . . . . . . . . . . . . Sneak Attacks 2 | . . . . . . . . . 1 . . . . . . . . . . . . . . . . . 1 . . . . Combat Hostiles . | . . . . . . . . . . . . . . . . . . . . . . . . . . . . . . . . Follow-up Attacks . | . . . . . . . . . . . . . . . . . . . . . . . . . . . . . . . . Damage Inflicted 119622 | . 260 277 1275 . 1639 4077 599 1453 144 642 1017 2101 799 1473 2965 5668 1066 842 126 308 2515 1088 501 1843 2059 2487 7932 5885 944 26981 40656 Guns 55963 | . 260 235 74 . 1600 1129 . 1222 . 194 251 1833 184 1473 1678 4898 1066 842 126 308 1124 645 389 1192 1358 1893 7142 4352 570 11482 8443 Cannons 10486 | . . . 110 . . 26 . . . 333 184 268 . . . . . . . . 1231 . . 602 631 594 . 1025 . 597 4885 Explosions 51112 | . . . . . . 2840 599 231 . 115 582 . 615 . 1276 682 . . . . . 443 112 49 70 . 610 491 374 14706 27317 Melee 1409 | . . . 1089 . . . . . 144 . . . . . . . . . . . . . . . . . 176 . . . . Ramming 652 | . . 42 2 . 39 82 . . . . . . . . 11 88 . . . . 160 . . . . . 4 17 . 196 11 Kinetic 50669 | . 116 235 74 . 1509 770 . 1222 . 194 251 1833 184 1473 1678 4898 1066 842 92 308 2355 645 389 1192 1173 545 1769 2710 201 11670 11275 Thermal 21035 | . 144 . 110 . 91 889 . . . 333 449 268 105 . . 126 . . 34 . . 80 . 49 198 525 4024 1059 . 10829 1722 Explosive 27899 | . . . . . . 260 . . . . . . . . . 97 . . . . . . . . . . . . . 225 27317 Electromagnetic 17993 | . . . . . . 2076 599 231 . 115 317 . 510 . 1276 459 . . . . . 363 112 602 688 1417 1994 2099 743 4061 331 Impact . | . . . . . . . . . . . . . . . . . . . . . . . . . . . . . . . . Slashing 1374 | . . . 1089 . . . . . 144 . . . . . . . . . . . . . . . . . 141 . . . . Piercing . | . . . . . . . . . . . . . . . . . . . . . . . . . . . . . . . . Highest Corruption 74 | . . . . . . 3 3 4 . . 1 1 2 2 4 7 7 7 7 1 3 2 . 1 3 3 28 31 . 15 74 Average Corruption 9 | . . . . . . 2 3 3 . . 1 1 1 2 2 4 7 7 7 1 1 1 . 1 1 2 16 29 . 9 36 Corruption Purged 7 | . . . . . . . . 4 . . . . . . . . . . . . 1 2 . . . . . . . . . Effects 854 | . . . . . . 6 13 21 . . 1 6 4 5 11 42 20 22 2 . 5 . . 4 7 12 123 185 . 108 257 Message Errors 106 | . . . . . . 3 3 7 . . . . 2 1 2 6 4 6 1 . 3 . . . 4 6 15 20 . 7 16 Matter Fused 100 | . . . . . . . 5 5 . . . . . . . 9 3 5 . . . . . . 2 1 14 24 . 17 15 Heat Flow Errors 47 | . . . . . . 1 1 2 . . . . 1 . 2 5 1 2 . . 1 . . . . 1 6 7 . 7 10 Energy Discharges 44 | . . . . . . . . 3 . . 1 1 1 1 . 2 3 4 . . . . . 1 . 2 8 6 . 4 7 Parts Rejected 11 | . . . . . . . . . . . . . . . . 1 . . . . . . . . . . 2 1 . 3 4 Data Loss (minor) 47 | . . . . . . 1 2 1 . . . 4 . . 5 5 3 1 1 . . . . . 1 . 10 5 . 4 4 Data Loss (major) 18 | . . . . . . . . . . . . . . . . . 1 2 . . . . . . . . 4 2 . 7 2 Misfires 18 | . . . . . . . . . . . . . . . . 1 1 . . . . . . . . . 3 4 . 3 6 Alerts 8 | . . . . . . . . . . . . . . . . . . . . . . . . . . . 2 3 . . 3 Misdirections 51 | . . . . . . . . . . . . . . . . . . . . . . . . . . . 11 21 . 6 13 Targeting Errors 318 | . . . . . . 1 2 3 . . . 1 . 2 2 11 3 2 . . 1 . . 1 . 2 40 65 . 38 144 Weapon Failures 86 | . . . . . . . . . . . . . . 1 . 2 1 . . . . . . 2 . . 8 27 . 12 33 Overload Shots 17 | . . . . . . . . . . . . . . . . . . . . 1 . . . . . . . . . . 16 Overflow Damage 2970 | . . . 24 . . 66 46 . . 40 33 . . . . 44 . . . . 189 12 17 19 . 11 101 148 . 1238 982 Projectiles 481 | . . . . . . . . . . 40 28 . . . . . . . . . 159 . . 19 . 11 . 128 . 19 77 Explosions 2242 | . . . . . . 66 46 . . . 5 . . . . 22 . . . . . 12 17 . . . . 20 . 1149 905 Melee 247 | . . . 24 . . . . . . . . . . . . 22 . . . . 30 . . . . . 101 . . 70 . Knockbacks 34 | . . . . . . 1 . . . . . . . . 1 1 . . . . 9 . . . . . . 10 . 1 11 Impact 4 | . . . . . . 1 . . . . . . . . 1 1 . . . . 1 . . . . . . . . . . Kinetic 28 | . . . . . . . . . . . . . . . . . . . . . 6 . . . . . . 10 . 1 11 Secondary 2 | . . . . . . . . . . . . . . . . . . . . . 2 . . . . . . . . . . Self-Inflicted Damage 1863 | . . . . . . 355 10 60 . . . . 9 . 108 168 . . . . . . . . . . 51 . 26 549 527 Shots 60 | . . . . . . 19 1 5 . . . . 1 . 2 7 . . . . . . . . . . 2 . 4 11 8 Rammed 44 | . 1 7 . . 5 9 . . . . . . . . 3 7 . . . . 5 . . . . . 1 1 . 4 1 Targets Rammed 52 | . 1 9 1 . 6 9 . . . . . . . . 3 7 . . . . 7 . . . . . 1 1 . 6 1 Kicked . | . . . . . . . . . . . . . . . . . . . . . . . . . . . . . . . . Crushed 8 | . . 2 1 . 1 . . . . . . . . . . . . . . . 2 . . . . . . . . 2 . Highest Temperature 510 | . 40 94 310 . 358 362 253 338 . 188 303 440 193 225 395 264 183 267 63 171 307 126 9 48 153 329 190 510 . 165 200 Average Temperature 89 | . 21 38 168 . 155 91 82 92 . 65 142 102 44 84 76 74 55 58 40 66 93 55 5 20 45 67 29 135 . 81 101 Received Heat Transfer 4701 | . 24 51 80 . 198 237 . 21 . 36 . 163 57 54 330 306 180 90 . 81 93 204 45 27 213 138 513 412 16 312 820 Effects 16 | . . . 1 . 9 3 . . . . 1 1 . . 1 . . . . . . . . . . . . . . . . Shutdowns 2 | . . . . . 1 1 . . . . . . . . . . . . . . . . . . . . . . . . . Energy Bleed 3 | . . . 1 . 2 . . . . . . . . . . . . . . . . . . . . . . . . . . Interference 8 | . . . . . 6 1 . . . . 1 . . . . . . . . . . . . . . . . . . . . Short Circuit 2 | . . . . . . . . . . . . 1 . . 1 . . . . . . . . . . . . . . . . Damage (minor) 1 | . . . . . . 1 . . . . . . . . . . . . . . . . . . . . . . . . . Siege Activations 40 | . . . . . . . . . . . . . . . 1 5 3 2 1 1 1 1 . . 3 . 5 5 . 3 9 Total Turns 1222 | . . . . . . . . . . . . . . . 10 96 33 24 273 23 15 6 . . 45 . 116 100 . 118 363 Longest Duration 273 | . . . . . . . . . . . . . . . 10 40 13 17 273 23 15 6 . . 23 . 45 60 . 90 80 Robots Corrupted 66 | . . . . . . 3 2 1 . . 1 . 2 . 2 2 . . . . . . . 5 2 7 11 6 2 18 2 Combat Hostiles 56 | . . . . . . 3 1 1 . . 1 . 2 . 1 2 . . . . . . . . 2 6 10 6 2 17 2 Parts Fried 146 | . . . . . . 9 3 3 . 1 3 1 2 . 10 2 . . . . 1 1 . 6 3 17 22 14 3 39 6 Impact Corruptions 6 | . . . . . . . . . . . . . . . . 1 . . . . 3 . . . . . . . . 2 . Robots Melted . | . . . . . . . . . . . . . . . . . . . . . . . . . . . . . . . . Combat Hostiles . | . . . . . . . . . . . . . . . . . . . . . . . . . . . . . . . . Parts Melted 12 | . . . . . . . . . . . 1 . . . . . . . . . . . . . 1 5 . 5 . . . Heat Transferred 11518 | . 325 . 240 . 185 1414 . . . 444 572 370 150 . . 50 . . 37 . . 100 . 50 272 592 4523 1210 . 380 604 Parts Sabotaged 3 | . . . . . . . . . . . . . . . . . . . . . . . . . . . . . . . 3 Parts Stolen . | . . . . . . . . . . . . . . . . . . . . . . . . . . . . . . . . Parts Stripped . | . . . . . . . . . . . . . . . . . . . . . . . . . . . . . . . . Power Chain Reactions 29 | . . . . . . 9 . . . 2 2 . 2 . 1 2 . . . . . 2 . 1 1 . 1 1 . 5 . Missiles Intercepted . | . . . . . . . . . . . . . . . . . . . . . . . . . . . . . . . . Alert | -11 -10 -10 -10 -9 -8 -7 -7 -7 -7 -6 -6 -6 -6 -6 -6 -5 -5 -5 -5 -4 -4 -4 -4 -4 -3 -3 -3 -3 -2 -1 -1 ------- Run | Scr Mat Min Exi Min Mat Fac Low Low Dat Pro Fac Ext Cet Arc Hub Fac Upp Upp War Pro Fac Upp Upp Zhi Pro Res Qua Sec Res Acc Com Peak Influence 6002 | . 97 152 . . 390 927 . . . . 91 435 319 196 602 952 . . . . 318 . . . . 371 877 506 497 3758 6002 Initial 2404 | . . 37 . . . 177 . . . . . 44 16 47 68 289 . . . . . . . . . 20 208 174 267 213 2404 Average 627 | . 67 61 . . 140 369 . . . . 28 117 182 157 182 552 . . . . 108 . . . . 151 429 360 426 1076 4204 Maximum Alert Level 5 | . . . . . 1 3 . . . . . 2 1 . 2 3 . . . . 1 . . . . 1 3 2 2 5 5 Low Security (%) 38 | 100 100 100 . 100 64 42 . . . . 100 82 44 100 49 2 . . . . 89 . . . . 64 5 8 . . . Level 1 24 | . . . . . 35 23 . . . . . 8 55 . 49 35 . . . . 10 . . . . 35 52 39 30 20 . Level 2 14 | . . . . . . 14 . . . . . 9 . . . 24 . . . . . . . . . . 24 51 69 10 . Level 3 10 | . . . . . . 19 . . . . . . . . . 37 . . . . . . . . . . 16 . . 30 . Level 4 1 | . . . . . . . . . . . . . . . . . . . . . . . . . . . . . . 13 . Level 5 2 | . . . . . . . . . . . . . . . . . . . . . . . . . . . . . . 19 11 High Security 7 | . . . . . . . . . . . . . . . . . . . . . . . . . . . . . . 6 88 Max Security . | . . . . . . . . . . . . . . . . . . . . . . . . . . . . . . . . Squads Dispatched 113 | . 2 . . . 2 10 . . . . 3 1 . . 8 15 . . . . 3 . . . . 3 9 4 . 21 32 Investigation 11 | . 2 . . . . 2 . . . . 1 . . . 1 . . . . . 1 . . . . 2 . . . 2 . Extermination 24 | . . . . . . 2 . . . . . . . . 3 4 . . . . 2 . . . . 1 6 3 . 3 . Reinforcement 20 | . . . . . 2 3 . . . . 2 1 . . 1 4 . . . . . . . . . . 2 1 . 4 . Assault 46 | . . . . . . . . . . . . . . . . 1 . . . . . . . . . . 1 . . 12 32 Garrison 12 | . . . . . . 3 . . . . . . . . 3 6 . . . . . . . . . . . . . . . Intercept . | . . . . . . . . . . . . . . . . . . . . . . . . . . . . . . . . Construction Impeded 7 | . . . . . . 2 . . . . 1 1 . . . 2 . . . . . . . . . . . . . 1 . Haulers Reinforced 5 | . . . . . . 1 . . . . . . . . . 1 . . . . . . . . . . 1 . . 2 . Stealth | -11 -10 -10 -10 -9 -8 -7 -7 -7 -7 -6 -6 -6 -6 -6 -6 -5 -5 -5 -5 -4 -4 -4 -4 -4 -3 -3 -3 -3 -2 -1 -1 --------- Run | Scr Mat Min Exi Min Mat Fac Low Low Dat Pro Fac Ext Cet Arc Hub Fac Upp Upp War Pro Fac Upp Upp Zhi Pro Res Qua Sec Res Acc Com Distress Signals 25 | . 1 . . . 5 4 . . . . . 2 2 . 2 2 . . . . . . . . . . 1 3 2 . 1 Communications Jammed 197 | . . . . . . . . . . . . . . . . . . . . . . . . . . . 60 12 2 30 93 Distress Signals 196 | . . . . . . . . . . . . . . . . . . . . . . . . . . . 60 12 2 29 93 Times Spotted 795 | . 3 6 8 . 26 38 7 7 . 5 6 33 15 29 34 51 13 2 24 3 14 15 7 3 15 20 52 40 10 119 190 Peak Tracking Total 24 | . 3 2 9 . 5 5 4 3 . 3 3 6 5 1 7 6 5 1 15 2 3 5 2 3 4 4 5 5 4 9 24 Tactical Retreats 41 | . 1 . . . 5 1 1 . . . . 1 . . 2 3 2 . 2 . . . . . 3 1 3 5 . 7 4 Traps | -11 -10 -10 -10 -9 -8 -7 -7 -7 -7 -6 -6 -6 -6 -6 -6 -5 -5 -5 -5 -4 -4 -4 -4 -4 -3 -3 -3 -3 -2 -1 -1 ------- Run | Scr Mat Min Exi Min Mat Fac Low Low Dat Pro Fac Ext Cet Arc Hub Fac Upp Upp War Pro Fac Upp Upp Zhi Pro Res Qua Sec Res Acc Com Traps Triggered 21 | . 1 . . . . 4 . . . . . 3 . . 1 2 . . . . . . . . . 1 1 . . 5 3 Indirectly 4 | . . . . . . 1 . . . . . . . . 1 . . . . . . . . . . . . . . 2 . Trap Hack Attempts . | . . . . . . . . . . . . . . . . . . . . . . . . . . . . . . . . Triggered . | . . . . . . . . . . . . . . . . . . . . . . . . . . . . . . . . Disarmed . | . . . . . . . . . . . . . . . . . . . . . . . . . . . . . . . . Reprogrammed . | . . . . . . . . . . . . . . . . . . . . . . . . . . . . . . . . Reused 4 | . . . . . . . . . 1 . . . . . . . . . . 1 . . . . 2 . . . . . . Traps Extracted . | . . . . . . . . . . . . . . . . . . . . . . . . . . . . . . . . Installed 14 | . . . . . . . . . 8 . . . . . . . . . . 1 . . . 3 2 . . . . . . Triggered 26 | . . . . . . . . . . 1 . . . . . . . . 17 1 . . 4 . 3 . . . . . . Machines | -11 -10 -10 -10 -9 -8 -7 -7 -7 -7 -6 -6 -6 -6 -6 -6 -5 -5 -5 -5 -4 -4 -4 -4 -4 -3 -3 -3 -3 -2 -1 -1 ---------- Run | Scr Mat Min Exi Min Mat Fac Low Low Dat Pro Fac Ext Cet Arc Hub Fac Upp Upp War Pro Fac Upp Upp Zhi Pro Res Qua Sec Res Acc Com Machines Disabled 87 | . . 1 3 . 1 12 . . . . . 1 2 2 17 9 . . . . 2 . . . . 1 15 6 1 11 3 Max in Single Turn 11 | . . 1 1 . 1 3 . . . . . . . 1 11 1 . . . . 1 . . . . 1 3 1 1 9 1 Garrison Access 4 | . . . . . . . . . . . . . . . . . . . . . . . . . . . . . 1 3 . Network Hub 2 | . . . . . . . . . . . . . . . 2 . . . . . . . . . . . . . . . . Machines Sabotaged . | . . . . . . . . . . . . . . . . . . . . . . . . . . . . . . . . Garrisons Compromised . | . . . . . . . . . . . . . . . . . . . . . . . . . . . . . . . . Overloaded Fab Kills . | . . . . . . . . . . . . . . . . . . . . . . . . . . . . . . . . Fab Network Shutdowns 1 | . . . . . . . . . . . . . . . . 1 . . . . . . . . . . . . . . . Hacking | -11 -10 -10 -10 -9 -8 -7 -7 -7 -7 -6 -6 -6 -6 -6 -6 -5 -5 -5 -5 -4 -4 -4 -4 -4 -3 -3 -3 -3 -2 -1 -1 --------- Run | Scr Mat Min Exi Min Mat Fac Low Low Dat Pro Fac Ext Cet Arc Hub Fac Upp Upp War Pro Fac Upp Upp Zhi Pro Res Qua Sec Res Acc Com Machines Accessed 74 | . 3 1 2 . 2 4 1 1 4 . 2 10 1 . 4 9 . . . . 7 . 1 4 . 2 7 4 . 5 . Terminals 44 | . 3 . . . 2 3 1 . . . . 10 1 . 4 5 . . . . 3 . . . . 1 5 4 . 2 . Fabricators 5 | . . . . . . . . . . . . . . . . 2 . . . . 2 . . . . . . . . 1 . Repair Stations 6 | . . . . . . 1 . . . . . . . . . 1 . . . . 2 . . . . 1 1 . . . . Recycling Units . | . . . . . . . . . . . . . . . . . . . . . . . . . . . . . . . . Scanalyzers 4 | . . . . . . . . . . . 2 . . . . 1 . . . . . . . . . . 1 . . . . Garrison Access 2 | . . . . . . . . . . . . . . . . . . . . . . . . . . . . . . 2 . Total Hacks 334 | . 11 1 2 . 5 12 1 1 33 . 5 32 1 . 23 80 . . . . 47 . 1 17 . 10 29 14 . 9 . Successful 226 | . 6 1 2 . 3 7 1 1 33 . 2 19 1 . 20 61 . . . . 24 . 1 17 . 6 13 4 . 4 . Failed 102 | . 4 . . . 2 5 . . . . 3 12 . . 2 17 . . . . 23 . . . . 4 15 10 . 5 . Catastrophic 20 | . 2 . . . . 1 . . . . . 2 . . . 1 . . . . 2 . . . . 3 1 5 . 3 . Database Lockouts 6 | . 1 . . . . . . . . . . 1 . . 1 2 . . . . . . . . . . 1 . . . . Manual 153 | . 8 . 1 . 4 4 . . . . . 18 . . 17 43 . . 1 . 27 . . . . 8 12 7 . 3 . Terminals 207 | . 11 . . . 5 10 1 . . . . 32 1 . 23 50 . . . . 27 . . . . 7 21 14 . 5 . Fabricators 20 | . . . . . . . . . . . . . . . . 10 . . . . 9 . . . . . . . . 1 . Repair Stations 30 | . . . . . . 2 . . . . . . . . . 9 . . . . 11 . . . . 3 5 . . . . Recycling Units . | . . . . . . . . . . . . . . . . . . . . . . . . . . . . . . . . Scanalyzers 19 | . . . . . . . . . . . 5 . . . . 11 . . . . . . . . . . 3 . . . . Garrison Access 3 | . . . . . . . . . . . . . . . . . . . . . . . . . . . . . . 3 . Terminal Hacks 161 | . 5 1 2 . 3 5 1 1 33 . . 17 1 . 14 31 . . . . 13 . 1 17 . 2 9 3 . 2 . Record 26 | . . . 1 . 1 . 1 . 11 . . 1 . . . 2 . . . . . . 1 5 . . 3 . . . . Part Schematic 20 | . . . . . 1 . . . 11 . . 2 . . . . . . . . 1 . . 4 . 1 . . . . . Robot Schematic 8 | . . . . . . . . . 8 . . . . . . . . . . . . . . . . . . . . . . Robot Analysis 10 | . 2 . . . . . . . . . . 1 . . 2 1 . . . . . . . 4 . . . . . . . Prototype ID Bank 23 | . 1 . . . . . . . 3 . . 1 . . 1 11 . . . . 2 . . 4 . . . . . . . Open Door 8 | . . 1 . . . . . 1 . . . 5 1 . . . . . . . . . . . . . . . . . . Level Access Points 1 | . . . . . . . . . . . . . . . . 1 . . . . . . . . . . . . . . . Branch Access Points 6 | . 1 . . . 1 1 . . . . . . . . . 1 . . . . 1 . . . . . . . . 1 . Emergency Access Points 1 | . . . . . . . . . . . . . . . . 1 . . . . . . . . . . . . . . . Machine Index 2 | . . . . . . . . . . . . . . . 1 1 . . . . . . . . . . . . . . . Terminal Index 7 | . . . . . . 1 . . . . . 1 . . . 2 . . . . 1 . . . . . . 1 . 1 . Fabricator Index 1 | . . . . . . . . . . . . . . . . 1 . . . . . . . . . . . . . . . Repair Station Index 1 | . . . . . . . . . . . . . . . . . . . . . 1 . . . . . . . . . . Recycling Unit Index 1 | . . . . . . . . . . . . . . . 1 . . . . . . . . . . . . . . . . Scanalyzer Index 2 | . . . . . . 1 . . . . . . . . . 1 . . . . . . . . . . . . . . . Garrison Index 1 | . . . . . . . . . . . . . . . . 1 . . . . . . . . . . . . . . . Alert Level 10 | . . . . . . . . . . . . . . . 4 2 . . . . 1 . . . . 1 2 . . . . Unreport Threat 18 | . . . . . . . . . . . . 5 . . 1 4 . . . . 2 . . . . . 4 2 . . . Locate Traps 1 | . . . . . . . . . . . . . . . . . . . . . 1 . . . . . . . . . . Dispatch Records 1 | . . . . . . . . . . . . . . . 1 . . . . . . . . . . . . . . . . Maintenance Status 1 | . . . . . . . . . . . . . . . . 1 . . . . . . . . . . . . . . . Recall Investigation 1 | . . . . . . 1 . . . . . . . . . . . . . . . . . . . . . . . . . Recall Reinforcements 1 | . . . . . . 1 . . . . . . . . . . . . . . . . . . . . . . . . . Hauler Manifests 5 | . 1 . . . . . . . . . . . . . 2 1 . . . . 1 . . . . . . . . . . Registered Components 2 | . . . . . . . . . . . . . . . 1 . . . . . 1 . . . . . . . . . . Registered Prototypes 1 | . . . . . . . . . . . . . . . . . . . . . 1 . . . . . . . . . . Zone Layout 1 | . . . . . . . . . . . . 1 . . . . . . . . . . . . . . . . . . . EX-Prototype ID Bank 1 | . . . 1 . . . . . . . . . . . . . . . . . . . . . . . . . . . . Fabricator Hacks 4 | . . . . . . . . . . . . . . . . 2 . . . . 2 . . . . . . . . . . Load Schematic 2 | . . . . . . . . . . . . . . . . 1 . . . . 1 . . . . . . . . . . Build 2 | . . . . . . . . . . . . . . . . 1 . . . . 1 . . . . . . . . . . Repair Station Hacks 18 | . . . . . . 2 . . . . . . . . . 8 . . . . 5 . . . . 2 1 . . . . Scan Component 11 | . . . . . . 1 . . . . . . . . . 4 . . . . 4 . . . . 1 1 . . . . Repair 7 | . . . . . . 1 . . . . . . . . . 4 . . . . 1 . . . . 1 . . . . . Recycling Unit Hacks . | . . . . . . . . . . . . . . . . . . . . . . . . . . . . . . . . Scanalyzer 15 | . . . . . . . . . . . 2 . . . . 10 . . . . . . . . . . 3 . . . . Insert Component 4 | . . . . . . . . . . . 2 . . . . 1 . . . . . . . . . . 1 . . . . Analyze 11 | . . . . . . . . . . . . . . . . 9 . . . . . . . . . . 2 . . . . Garrison Access Hacks 2 | . . . . . . . . . . . . . . . . . . . . . . . . . . . . . . 2 . Seal Access 2 | . . . . . . . . . . . . . . . . . . . . . . . . . . . . . . 2 . Unauthorized Hacks 26 | . 1 . . . . . . . . . . 2 . . 6 10 . . . . 4 . . . . 2 . 1 . . . Terminals 18 | . 1 . . . . . . . . . . 2 . . 6 5 . . . . 2 . . . . 1 . 1 . . . Track 2 | . . . . . . . . . . . . . . . 1 1 . . . . . . . . . . . . . . . Assimilate 5 | . . . . . . . . . . . . . . . 2 1 . . . . . . . . . 1 . 1 . . . Botnet 8 | . 1 . . . . . . . . . . 2 . . 2 2 . . . . 1 . . . . . . . . . . Operators 3 | . . . . . . . . . . . . . . . 1 1 . . . . 1 . . . . . . . . . . Fabricators 7 | . . . . . . . . . . . . . . . . 5 . . . . 2 . . . . . . . . . . Report 1 | . . . . . . . . . . . . . . . . 1 . . . . . . . . . . . . . . . Prioritize 1 | . . . . . . . . . . . . . . . . 1 . . . . . . . . . . . . . . . Siphon 2 | . . . . . . . . . . . . . . . . 1 . . . . 1 . . . . . . . . . . Haulers 3 | . . . . . . . . . . . . . . . . 2 . . . . 1 . . . . . . . . . . Repair Stations 1 | . . . . . . . . . . . . . . . . . . . . . . . . . . 1 . . . . . Mechanics 1 | . . . . . . . . . . . . . . . . . . . . . . . . . . 1 . . . . . Recycling Units . | . . . . . . . . . . . . . . . . . . . . . . . . . . . . . . . . Scanalyzers . | . . . . . . . . . . . . . . . . . . . . . . . . . . . . . . . . Garrison Access . | . . . . . . . . . . . . . . . . . . . . . . . . . . . . . . . . Data Cores Recovered 2 | . . . . . . . . . . . . 1 . . . 1 . . . . . . . . . . . . . . . Used 2 | . . . . . . . . . . . . 1 . . . 1 . . . . . . . . . . . . . . . Hacking Detections 49 | . 3 . . . 2 3 . . . . 2 7 . . 4 8 . . . . 6 . . . . 1 6 4 . 3 . Full Trace Events 6 | . 1 . . . . 1 . . . . 1 . . . . . . . . . 1 . . . . 1 . . . 1 . Feedback Events 1 | . . . . . . . . . . . . . . . . . . . . . 1 . . . . . . . . . . Corruption 1 | . . . . . . . . . . . . . . . . . . . . . 1 . . . . . . . . . . Feedback Blocked . | . . . . . . . . . . . . . . . . . . . . . . . . . . . . . . . . Robot Schematics Acquired 8 | . . . . . . . . . 8 . . . . . . . . . . . . . . . . . . . . . . Robots Built . | . . . . . . . . . . . . . . . . . . . . . . . . . . . . . . . . Matter . | . . . . . . . . . . . . . . . . . . . . . . . . . . . . . . . . Time . | . . . . . . . . . . . . . . . . . . . . . . . . . . . . . . . . Total Robot Build Rating . | . . . . . . . . . . . . . . . . . . . . . . . . . . . . . . . . Part Schematics Acquired 21 | . . . . . 1 . . . 11 . . 2 . . . . . . . . 1 . . 4 . 1 1 . . . . Parts Built 2 | . . . . . . . . . . . . . . . . 1 . . . . 1 . . . . . . . . . . Matter 501 | . . . . . . . . . . . . . . . . 213 . . . . 288 . . . . . . . . . . Time 140 | . . . . . . . . . . . . . . . . 38 . . . . 102 . . . . . . . . . . Total Part Build Rating 13 | . . . . . . . . . . . . . . . . 5 . . . . 8 . . . . . . . . . . Parts Repaired 7 | . . . . . . 1 . . . . . . . . . 4 . . . . 1 . . . . 1 . . . . . Time 333 | . . . . . . 56 . . . . . . . . . 206 . . . . 45 . . . . 26 . . . . . Parts Recycled . | . . . . . . . . . . . . . . . . . . . . . . . . . . . . . . . . Recycled Matter . | . . . . . . . . . . . . . . . . . . . . . . . . . . . . . . . . Retrieved Matter . | . . . . . . . . . . . . . . . . . . . . . . . . . . . . . . . . Retrieved Components . | . . . . . . . . . . . . . . . . . . . . . . . . . . . . . . . . Parts Scanalyzed 2 | . . . . . . . . . . . . . . . . 1 . . . . . . . . . . 1 . . . . Part Schematics Acquired 1 | . . . . . . . . . . . . . . . . . . . . . . . . . . . 1 . . . . Parts Damaged . | . . . . . . . . . . . . . . . . . . . . . . . . . . . . . . . . Bothacking | -11 -10 -10 -10 -9 -8 -7 -7 -7 -7 -6 -6 -6 -6 -6 -6 -5 -5 -5 -5 -4 -4 -4 -4 -4 -3 -3 -3 -3 -2 -1 -1 ------------ Run | Scr Mat Min Exi Min Mat Fac Low Low Dat Pro Fac Ext Cet Arc Hub Fac Upp Upp War Pro Fac Upp Upp Zhi Pro Res Qua Sec Res Acc Com Used RIF Installer . | . . . . . . . . . . . . . . . . . . . . . . . . . . . . . . . . Robots Hacked . | . . . . . . . . . . . . . . . . . . . . . . . . . . . . . . . . Non-combat . | . . . . . . . . . . . . . . . . . . . . . . . . . . . . . . . . Combat . | . . . . . . . . . . . . . . . . . . . . . . . . . . . . . . . . Robot Hacks Applied . | . . . . . . . . . . . . . . . . . . . . . . . . . . . . . . . . Relay Couplers Released 1 | . . . . . . . . . . . . . . . . . . . . . . . . . . . . . 1 . . Machine Destruction 1 | . . . . . . . . . . . . . . . . . . . . . . . . . . . . . 1 . . Robots Rewired 19 | . . . . . . . . . . . . 18 . . . . . . . . . . . . . . . . . . 1 Allies Hacked 1 | . . . . . . 1 . . . . . . . . . . . . . . . . . . . . . . . . . Hacks Repelled 1 | . . . . . . . . . . . . 1 . . . . . . . . . . . . . . . . . . . Allies | -11 -10 -10 -10 -9 -8 -7 -7 -7 -7 -6 -6 -6 -6 -6 -6 -5 -5 -5 -5 -4 -4 -4 -4 -4 -3 -3 -3 -3 -2 -1 -1 -------- Run | Scr Mat Min Exi Min Mat Fac Low Low Dat Pro Fac Ext Cet Arc Hub Fac Upp Upp War Pro Fac Upp Upp Zhi Pro Res Qua Sec Res Acc Com Total Allies 49 | . . 3 . . . 3 . . . . . 25 . . 2 1 . . . . . 1 . . . . . 7 . . 7 Largest Group 13 | . . 3 2 . . 3 2 1 . . . 13 5 2 1 1 . . . . . 1 1 1 . . . 6 . . 6 Highest-Rated Group 417 | . . 40 32 . . 93 62 26 . . . 417 237 170 26 26 . . . . . 99 99 95 . . . 82 . . 169 Highest-Rated Ally 156 | . . 16 16 . . 31 31 26 . . . 156 150 150 26 26 . . . . . 99 99 95 . . . 15 . . 98 Total Orders 19 | . . . 10 . . 1 1 . . . . . . . . . . . 3 . . . . . . . . . . . 4 STAY 4 | . . . 2 . . . . . . . . . . . . . . . . . . . . . . . . . . . 2 FOLLOW 2 | . . . . . . . . . . . . . . . . . . . . . . . . . . . . . . . 2 EXPLORE 2 | . . . . . . . . . . . . . . . . . . . 2 . . . . . . . . . . . . RETURN 11 | . . . 8 . . 1 1 . . . . . . . . . . . 1 . . . . . . . . . . . . Ally Attacks 382 | . . 4 16 . . 23 12 . . . . 152 37 1 . . . . . . . 12 10 . . . . 28 . . 87 Total Damage 9605 | . . 50 190 . . 343 166 . . . . 3655 1059 21 . . . . . . . 743 733 . . . . 657 . . 1988 Kills 72 | . . 2 4 . . 3 1 . . . . 29 9 . . . . . . . . 5 6 . . . . 3 . . 10 Allies Corrupted 2 | . . . . . . . 1 . . . . . . . . . . . . . . . . 1 . . . . . . . Allies Melted 1 | . . . . . . . . . . . . . . . . . . . . . . . . . . . . . 1 . . Intel | -11 -10 -10 -10 -9 -8 -7 -7 -7 -7 -6 -6 -6 -6 -6 -6 -5 -5 -5 -5 -4 -4 -4 -4 -4 -3 -3 -3 -3 -2 -1 -1 ------- Run | Scr Mat Min Exi Min Mat Fac Low Low Dat Pro Fac Ext Cet Arc Hub Fac Upp Upp War Pro Fac Upp Upp Zhi Pro Res Qua Sec Res Acc Com Robot Analysis Total 10 | . 2 . . . . . . . . . . 1 . . 2 1 . . . . . . . 4 . . . . . . . Derelict Logs Recovered 10 | . . 1 . . . . 1 1 . 1 . . . . . . 1 . . 2 . 2 1 . . . . . . . . Drone Launches 26 | . . . 10 . 1 4 3 2 . 2 . . . . . . . . 4 . . . . . . . . . . . . Drone Recoveries 20 | . . . 10 . 1 2 1 1 . 2 1 . . . . . . . 2 . . . . . . . . . . . . Decoded 0b10 Intel 10 | . . . . . . . . . . . . . . . . . . . . . . . . . . 10 . . . . . Items 10 | . . . . . . . . . . . . . . . . . . . . . . . . . . 10 . . . . . Exploration | -11 -10 -10 -10 -9 -8 -7 -7 -7 -7 -6 -6 -6 -6 -6 -6 -5 -5 -5 -5 -4 -4 -4 -4 -4 -3 -3 -3 -3 -2 -1 -1 ------------- Run | Scr Mat Min Exi Min Mat Fac Low Low Dat Pro Fac Ext Cet Arc Hub Fac Upp Upp War Pro Fac Upp Upp Zhi Pro Res Qua Sec Res Acc Com Turns Passed 29122 | 47 391 1021 945 91 623 1195 605 2381 219 946 536 1405 411 292 872 1583 530 607 754 452 983 1630 1136 865 978 641 1899 1420 474 1944 1246 Spaces Moved 14098 | 41 214 601 450 48 221 499 407 1395 140 556 309 766 185 113 391 609 274 341 253 255 497 914 644 418 520 276 722 572 272 822 373 Core 131 | 41 70 . . . . . . . . . . . . . . . . . . . . . . . . . . . . . 20 Treads 10153 | . 144 601 450 48 221 281 . . . . . 4 158 113 391 609 274 341 253 255 497 914 644 418 520 276 722 572 272 822 353 Legs . | . . . . . . . . . . . . . . . . . . . . . . . . . . . . . . . . Wheels 3814 | . . . . . . 218 407 1395 140 556 309 762 27 . . . . . . . . . . . . . . . . . . Hover . | . . . . . . . . . . . . . . . . . . . . . . . . . . . . . . . . Flight . | . . . . . . . . . . . . . . . . . . . . . . . . . . . . . . . . Fastest Speed 50 | 50 100 160 160 180 180 130 140 130 140 140 140 130 140 180 180 160 160 160 160 160 160 170 170 160 160 160 160 160 147 151 50 Average Speed 159 | 85 144 160 173 180 197 184 140 139 142 149 147 140 174 180 185 161 160 160 160 160 161 170 170 163 160 160 177 165 150 153 147 Slowest Speed 290 | 100 200 160 180 180 200 280 140 140 150 150 150 290 180 180 270 185 160 160 160 160 170 170 170 170 180 160 210 180 151 185 166 Overloaded Moves . | . . . . . . . . . . . . . . . . . . . . . . . . . . . . . . . . Propulsion Burnouts . | . . . . . . . . . . . . . . . . . . . . . . . . . . . . . . . . Robots Hopped 2 | . . . . . . . . 2 . . . . . . . . . . . . . . . . . . . . . . . Cave-ins Triggered 1 | . . . . . . . . . . . . . . . . . . . . . . . . . . . . . . 1 . Teleports 2 | . . . . . . . . . . . . . . . . . . . . . . . . . . . 1 1 . . . Exploration Rate (%) 51 | 3 31 91 69 14 29 21 68 80 77 65 16 83 71 72 47 22 54 57 90 38 21 80 86 89 76 11 86 30 14 26 18 Regions Visited 31 Branch Regions 22 Pre-discovered Areas 6 | . . . 1 . . . 1 . 1 . . . . . . . . . . . . . . 3 . . . . . . . Known Exits Taken 11 | . 1 . . . . 1 1 1 1 1 . . . . . 1 . . . 1 1 . . . . 1 . . . 1 . Unknown Exits Taken 20 | 1 . 1 1 1 1 . . . . . 1 1 1 1 1 . 1 1 1 . . 1 1 1 1 . 1 1 1 . . Scrap Searched 23 | . . 1 . 1 . . 2 3 . 2 . . . . . . 1 1 . 2 . 3 4 . 3 . . . . . . Spaces Dug 115 | . . . . . . 2 . . . 5 3 . . . . 9 . . . 1 3 3 . . . 2 . 13 . 39 35 Terrain Destroyed 1754 | . . . . . . 58 . 1 . 28 7 5 6 13 328 121 17 14 . 3 55 13 6 38 14 4 30 25 . 633 335 Melee . | . . . . . . . . . . . . . . . . . . . . . . . . . . . . . . . . Projectile 278 | . . . . . . 3 . 1 . 13 2 5 . 13 22 68 17 14 . 3 18 9 6 26 11 4 10 16 . 13 4 AOE 1476 | . . . . . . 55 . . . 15 5 . 6 . 306 53 . . . . 37 4 . 12 3 . 20 9 . 620 331 Terrain Rammed . | . . . . . . . . . . . . . . . . . . . . . . . . . . . . . . . . Walls Destroyed . | . . . . . . . . . . . . . . . . . . . . . . . . . . . . . . . . Machines Disabled . | . . . . . . . . . . . . . . . . . . . . . . . . . . . . . . . . Actions | -11 -10 -10 -10 -9 -8 -7 -7 -7 -7 -6 -6 -6 -6 -6 -6 -5 -5 -5 -5 -4 -4 -4 -4 -4 -3 -3 -3 -3 -2 -1 -1 --------- Run | Scr Mat Min Exi Min Mat Fac Low Low Dat Pro Fac Ext Cet Arc Hub Fac Upp Upp War Pro Fac Upp Upp Zhi Pro Res Qua Sec Res Acc Com Total 18328 | 51 258 639 570 53 326 677 428 1757 160 633 351 1010 255 142 459 1011 322 371 605 279 625 959 663 518 592 427 1226 811 308 1114 728 Wait 1480 | . 1 3 44 5 14 71 3 271 . 11 1 37 1 . 21 274 24 12 314 9 64 10 1 . 17 40 103 50 . 28 51 Move 14063 | 40 213 600 449 47 220 498 406 1390 139 555 308 765 184 112 391 608 273 340 252 254 496 913 643 417 519 275 721 571 271 820 373 Hop 2 | . . . . . . . . 2 . . . . . . . . . . . . . . . . . . . . . . . Pick Up 256 | 6 10 3 9 1 11 8 4 14 2 1 12 10 16 2 3 8 4 4 6 3 9 4 4 5 10 10 32 12 3 12 18 Fast Attach 159 | 3 2 4 4 . 4 8 . 4 . . 1 4 2 . . 12 . . 3 . 3 2 . 11 1 7 30 15 4 11 24 Attach 205 | 2 2 2 3 . 7 5 . 14 . 13 3 8 10 1 2 11 2 1 6 1 7 2 1 3 4 9 35 11 6 8 26 Detach 68 | . . . . . . 1 . 5 . 13 . 4 2 . . 1 . . 5 . 1 . . . . 1 20 2 3 5 5 Swap 122 | . 1 . 12 . 2 3 1 1 2 2 . 3 8 1 4 3 2 . 4 . 3 3 . 1 4 4 4 21 2 15 16 Drop 263 | . 5 7 9 . 4 5 . 15 8 . 4 15 18 2 3 5 . 1 13 1 10 5 1 15 2 10 52 16 6 11 20 Fire 1471 | . 23 11 16 . 58 69 14 41 . 38 22 39 14 24 33 82 17 13 1 10 25 20 13 63 33 71 222 112 13 197 177 Melee 30 | . . . 23 . . . . . 1 . . . . . . . . . . . . . . . . . 6 . . . . Ram 2 | . 1 . . . . 1 . . . . . . . . . . . . . . . . . . . . . . . . . Kick . | . . . . . . . . . . . . . . . . . . . . . . . . . . . . . . . . Crush 49 | . . 9 1 . 6 8 . . . . . . . . 2 7 . . . . 7 . . . . . 1 1 . 6 1 Escape Stasis 20 | . . . . . . . . . . . . 8 . . . . . . . . . . . . . . . . . 1 11 Rewire 123 | . . . . . . . . . . . . 117 . . . . . . . . . . . . . . . . . . 6 Trap 14 | . . . . . . . . . 8 . . . . . . . . . . 1 . . . 3 2 . . . . . . Miscellaneous 1 | . . . . . . . . . . . . . . . . . . . 1 . . . . . . . . . . . . Route ------- -11/Scrapyard -10/Materials (discovered 2 exits: *Min x2) -10/Mines (discovered 3 exits: [*Mat x2] / *Exi) -10/Exiles -9/Mines -8/Materials -7/Factory (discovered 3 exits: Sto / *Low x2) -7/Lower Caves -7/Lower Caves (discovered 2 exits: *Fac / *Dat) -7/Data Miner -6/Proximity Caves -6/Factory -6/Extension (discovered 2 exits: *Fac / *Cet) -6/Cetus (discovered 2 exits: *Fac / [*Arc]) -6/Archives (discovered 3 exits: *Fac / *Hub x2) -6/Hub_04(d) (discovered 2 exits: *Fac x2) -5/Factory (discovered 6 exits: *Fac x4 / *Upp x2) -5/Upper Caves -5/Upper Caves (discovered 2 exits: *Fac / *War) -5/Warlord -4/Proximity Caves -4/Factory (discovered 3 exits: *Res / *Upp x2) -4/Upper Caves -4/Upper Caves (discovered 2 exits: *Res / *Zhi) -4/Zhirov -3/Proximity Caves -3/Research -3/Quarantine (discovered 2 exits: [*Res] / *Sec) -3/Section 7 -2/Research -1/Access -1/Command History --------- Turn | Location | Event 4 | -11/Scrapyard | Discovered new exit (range 16) 48 | -11/Scrapyard | Entered Materials 60 | -10/Materials | Identified exit to Mines 203 | -10/Materials | Central database locked down 314 | -10/Materials | Build established: Mutant 439 | -10/Materials | Entered Mines 577 | -10/Mines | Discovered new exit (range 13) 683 | -10/Mines | Found the Drone Emporium 690 | -10/Mines | Found Prototype Device 690 | -10/Mines | Identified Sensor Drone Bay 751 | -10/Mines | Discovered new exit (range 6) 935 | -10/Mines | Assisted by bots powering up and referring to "LRC-V3" 991 | -10/Mines | A weapon hastily lodged in a ceiling crevice suddenly fell to the ground 1118 | -10/Mines | Found a damaged Exp. Sensor Array with a note attached 1124 | -10/Mines | Found Prototype Device 1124 | -10/Mines | Identified Exp. Sensor Array 1436 | -10/Mines | Learned Materials trap positions 1452 | -10/Mines | Deemed a non-threat by the Exiles lab entrance 1452 | -10/Mines | Discovered new exit (range 5) 1460 | -10/Mines | Entered Exiles 1460 | -10/Exiles | Accompanied by 2 allies 1497 | -10/Exiles | Met 8R-AWN 1528 | -10/Exiles | Met EX-HEX 1595 | -10/Exiles | Met EX-DEC 1627 | -10/Exiles | Learned location of Zion (-6) 1761 | -10/Exiles | Met EX-BIN 1786 | -10/Exiles | Aligned with FarCom system 1788 | -10/Exiles | Given EX-Vault access code 1829 | -10/Exiles | Opened EX-Vault 1841 | -10/Exiles | Found Cloak of Protection 1844 | -10/Exiles | Found Gui. Plasma Cannon 1846 | -10/Exiles | Found Longsword +1 1882 | -10/Exiles | Warned to stay clear of 0b10 Research branches 2125 | -10/Exiles | Attacked by the Exiles 2247 | -10/Exiles | Core integrity fell below 50% 2271 | -10/Exiles | Destroyed 8R-AWN 2289 | -10/Exiles | Lost 4 parts (1p1n1u1w) 2389 | -10/Exiles | Discovered new exit (range 11) 2405 | -10/Exiles | Entered Mines 2452 | -9/Mines | Discovered new exit (range 14) 2496 | -9/Mines | Entered Materials 2496 | -8/Materials | Evolved 4 slots: Utility x3, Weapon x1 2497 | -8/Materials | Loaded intel: 20 trap records 3023 | -8/Materials | Lost 3 parts (2u1w) 3095 | -8/Materials | Discovered new exit (range 12) 3119 | -8/Materials | Entered Factory 3119 | -7/Factory | Evolved 2 slots: Utility x2 3354 | -7/Factory | Identified exit to Storage 3354 | -7/Factory | Identified exit to Lower Caves 3726 | -7/Factory | Garrison activated, responded to threat 4093 | -7/Factory | Allied Derelicts emerged from ambush trap array 4210 | -7/Factory | Repaired Rnf. Fission Core 4269 | -7/Factory | Build established: Hauler-Mutant 4314 | -7/Factory | Entered Lower Caves 4314 | -7/Lower Caves | Accompanied by 2 allies 4395 | -7/Lower Caves | Encountered a Warlord checkpoint 4905 | -7/Lower Caves | Discovered new exit (range 7) 4917 | -7/Lower Caves | Identified exit to Lower Caves 4919 | -7/Lower Caves | Entered another Lower Caves area 4919 | -7/Lower Caves | Accompanied by 2 allies 4972 | -7/Lower Caves | Discovered new exit (range 9) 5192 | -7/Lower Caves | Encountered a Warlord checkpoint 5198 | -7/Lower Caves | Spotted B-75 Beast 5214 | -7/Lower Caves | Destroyed B-75 Beast 5319 | -7/Lower Caves | Learned Factory emergency access door positions 5395 | -7/Lower Caves | Found Prototype Device 5399 | -7/Lower Caves | Build established: Hauler-Tank 6012 | -7/Lower Caves | Identified Heart of Steel 6057 | -7/Lower Caves | Discovered new exit (range 7) 6065 | -7/Lower Caves | Identified exit to Data Miner 6334 | -7/Lower Caves | Build established: Scavenger-Tank 7109 | -7/Lower Caves | Build established: Hauler-Tank 7300 | -7/Lower Caves | Entered Data Miner 7300 | -7/Data Miner | Accompanied by 1 ally 7300 | -7/Data Miner | Discovered new exit (range 6) 7327 | -7/Data Miner | Met Data Miner 7365 | -7/Data Miner | Learned location of Section 7 (-3) 7365 | -7/Data Miner | Acquired the access code to Warlord's prototype stash 7379 | -7/Data Miner | Received God Mode back door access code from Data Miner 7453 | -7/Data Miner | Destroyed Data Miner 7458 | -7/Data Miner | Data Conduit disabled 7458 | -7/Data Miner | Found Prototype Hackware 7461 | -7/Data Miner | Found Prototype Hackware 7515 | -7/Data Miner | Identified exit to Proximity Caves 7519 | -7/Data Miner | Entered Proximity Caves 7519 | -6/Proximity Caves | Accompanied by 1 ally 7704 | -6/Proximity Caves | Build established: Hauler-Mutant 8131 | -6/Proximity Caves | Learned Factory trap positions 8260 | -6/Proximity Caves | Attracted the attention of an 0b10 checkpoint 8336 | -6/Proximity Caves | Build established: Hauler-Tank 8440 | -6/Proximity Caves | Discovered new exit (range 3) 8447 | -6/Proximity Caves | Identified exit to Factory 8465 | -6/Proximity Caves | Entered Factory 8465 | -6/Factory | Accompanied by 1 ally 8465 | -6/Factory | Evolved 2 slots: Propulsion x1, Weapon x1 8466 | -6/Factory | Loaded intel: 105 trap records 8685 | -6/Factory | Identified Deep Network Scanner 8739 | -6/Factory | Identified Ghost Barrier 8974 | -6/Factory | Discovered new exit (range 15) 9001 | -6/Factory | Entered Extension 9186 | -6/Extension | Rescued a captive Derelict 9187 | -6/Extension | Rescued a captive Derelict 9298 | -6/Extension | Central database locked down 9463 | -6/Extension | Rescued a captive Derelict 9577 | -6/Extension | Found Hvy. Reactive Plating 9850 | -6/Extension | Spotted B-75 Beast 9865 | -6/Extension | Spotted B-75 Beast 9877 | -6/Extension | Allies destroyed B-75 Beast 9960 | -6/Extension | Rescued a captive Derelict 9976 | -6/Extension | Rescued A7 10006 | -6/Extension | Rescued a captive Derelict 10006 | -6/Extension | Rescued a captive Derelict 10023 | -6/Extension | Build established: Hacker-Tank 10348 | -6/Extension | Discovered new exit (range 10) 10349 | -6/Extension | Discovered new exit (range 6) 10401 | -6/Extension | Disrupted transfer network 10406 | -6/Extension | Entered Cetus 10406 | -6/Cetus | Accompanied by 5 allies (A7) 10411 | -6/Cetus | Acquired a Cetus Manufacturing Module code from A7 10428 | -6/Cetus | Spotted Cetus Guard 10428 | -6/Cetus | Spotted Cetus Guard 10436 | -6/Cetus | Spotted Cetus Guard 10438 | -6/Cetus | Spotted Cetus Guard 10441 | -6/Cetus | Destroyed Cetus Guard 10447 | -6/Cetus | Allies destroyed Cetus Guard 10451 | -6/Cetus | Destroyed Cetus Guard 10462 | -6/Cetus | Allies destroyed Cetus Guard 10569 | -6/Cetus | Cetus Manufacturing Module disabled 10615 | -6/Cetus | Escorted A7 to Cetus Mainframe 10652 | -6/Cetus | Discovered new exit (range 15) 10681 | -6/Cetus | Spotted Cetus Guard 10681 | -6/Cetus | Spotted Cetus Guard 10684 | -6/Cetus | Spotted Cetus Guard 10686 | -6/Cetus | Allies destroyed Cetus Guard 10686 | -6/Cetus | Spotted Cetus Guard 10692 | -6/Cetus | Allies destroyed Cetus Guard 10697 | -6/Cetus | Allies destroyed Cetus Guard 10703 | -6/Cetus | Discovered new exit (range 16) 10706 | -6/Cetus | Allies destroyed Cetus Guard 10717 | -6/Cetus | Met Revision 17 10817 | -6/Cetus | Entered Archives 10817 | -6/Archives | Accompanied by 2 allies (A7) 10822 | -6/Archives | Received a hacking code to weaken MAIN.C 10912 | -6/Archives | Discovered new exit (range 14) 10928 | -6/Archives | Discovered new exit (range 15) 11003 | -6/Archives | Build established: Scavenger-Tank 11061 | -6/Archives | Discovered new exit (range 14) 11109 | -6/Archives | Entered Hub_04(d) 11308 | -6/Hub_04(d) | Discovered new exit (range 8) 11400 | -6/Hub_04(d) | Central database locked down 11632 | -6/Hub_04(d) | Garrison activated, responded to threat 11670 | -6/Hub_04(d) | Build established: Hacker-Gunner 11745 | -6/Hub_04(d) | Discovered new exit (range 10) 11978 | -6/Hub_04(d) | Network Hub disabled 11978 | -6/Hub_04(d) | Network Hub disabled 11981 | -6/Hub_04(d) | Entered Factory 11981 | -5/Factory | Evolved 2 slots: Power x1, Propulsion x1 11991 | -5/Factory | Identified exit to Upper Caves 12057 | -5/Factory | Central database locked down 12057 | -5/Factory | Identified exit to Factory 12192 | -5/Factory | Fabricated Exp. Terrain Scan Processor (x1) 12281 | -5/Factory | Local fabrication network quarantined 12330 | -5/Factory | Garrison activated, responded to threat 12411 | -5/Factory | Destroyed 8 combat bots 12663 | -5/Factory | Build established: Scavenger-Tank 12964 | -5/Factory | Garrison activated, responded to threat 13196 | -5/Factory | Central database locked down 13274 | -5/Factory | Repaired Imp. KE Penetrator 13314 | -5/Factory | Build established: Scavenger-Gunner 13406 | -5/Factory | Repaired Imp. KE Penetrator 13462 | -5/Factory | Repaired Centrium Medium Armor Plating 13517 | -5/Factory | Repaired Centrium Heavy Treads 13522 | -5/Factory | First assault squad dispatched 13564 | -5/Factory | Entered Upper Caves 13632 | -5/Upper Caves | Learned Factory emergency access door positions 14071 | -5/Upper Caves | Discovered new exit (range 15) 14082 | -5/Upper Caves | Attracted the attention of an 0b10 checkpoint 14094 | -5/Upper Caves | Entered another Upper Caves area 14094 | -5/Upper Caves | Discovered exit to Factory (range 11) 14302 | -5/Upper Caves | Encountered a Warlord checkpoint 14396 | -5/Upper Caves | Attracted the attention of an 0b10 checkpoint 14621 | -5/Upper Caves | Spotted B-75 Beast 14640 | -5/Upper Caves | Destroyed B-75 Beast 14692 | -5/Upper Caves | Discovered new exit (range 7) 14701 | -5/Upper Caves | Entered Warlord 14769 | -5/Warlord | System corruption cleaned by Quarantine Array 14929 | -5/Warlord | Discovered new exit (range 56) 14930 | -5/Warlord | Met Warlord 14948 | -5/Warlord | Opened Warlord's prototype stash 14953 | -5/Warlord | Found Prototype Reactor 14955 | -5/Warlord | Warlord's base attacked by MAIN.C 14961 | -5/Warlord | Found Prototype Device 14961 | -5/Warlord | Identified Thermal Barrier 14967 | -5/Warlord | Found Prototype Processor 14968 | -5/Warlord | Identified Exp. Core Analyzer 15072 | -5/Warlord | Spotted B-75 Beast 15305 | -5/Warlord | Warlord forces counterattacked 15362 | -5/Warlord | Spotted Striker 15365 | -5/Warlord | Spotted Executioner 15372 | -5/Warlord | Spotted Striker 15400 | -5/Warlord | Found Prototype Ballistic Cannon 15455 | -5/Warlord | Entered Proximity Caves 15652 | -4/Proximity Caves | Learned 4 Research zone layouts 15660 | -4/Proximity Caves | Spotted B-86 Titan 15686 | -4/Proximity Caves | Destroyed B-86 Titan 15741 | -4/Proximity Caves | Learned Research stockpile data 15775 | -4/Proximity Caves | Identified Hvy. Autocannon 15885 | -4/Proximity Caves | Discovered exit to Factory (range 14) 15907 | -4/Proximity Caves | Entered Factory 15907 | -4/Factory | Evolved 2 slots: Utility x2 16194 | -4/Factory | Build established: Scavenger-Tank 16217 | -4/Factory | Fabricated Exp. Transmission Jammer? 16395 | -4/Factory | Identified exit to Upper Caves 16722 | -4/Factory | Discovered new exit (range 16) 16789 | -4/Factory | Repaired Broken Centrium Heavy Treads 16890 | -4/Factory | Entered Upper Caves 17024 | -4/Upper Caves | Heart of Steel transformed into Warbot 17362 | -4/Upper Caves | Discovered new exit (range 5) 17834 | -4/Upper Caves | Learned Research emergency access door positions 18438 | -4/Upper Caves | Build established: Scavenger-Mutant 18520 | -4/Upper Caves | Entered another Upper Caves area 18520 | -4/Upper Caves | Accompanied by 1 ally (Warbot) 18623 | -4/Upper Caves | Discovered new exit (range 15) 18875 | -4/Upper Caves | Build established: Scavenger-Gunner 18973 | -4/Upper Caves | Discovered new exit (range 5) 19124 | -4/Upper Caves | Attracted the attention of an 0b10 checkpoint 19656 | -4/Upper Caves | Entered Zhirov 19656 | -4/Zhirov | Accompanied by 1 ally (Warbot) 19656 | -4/Zhirov | Discovered new exit (range 5) 19690 | -4/Zhirov | Met Zhirov 19728 | -4/Zhirov | Learned location of Quarantine (-3) 19728 | -4/Zhirov | Learned location of Testing (-2) 19728 | -4/Zhirov | Learned location of Command (-1) 19750 | -4/Zhirov | Zhirov requested help retrieving the SGEMP Prototype 19776 | -4/Zhirov | Found Alien Artifact 19776 | -4/Zhirov | Identified Integrated Reactor 19776 | -4/Zhirov | Installed Integrated Reactor, increased core energy generation (+10) 19850 | -4/Zhirov | Found Alien Artifact 19922 | -4/Zhirov | Attacked by Zhirov 19925 | -4/Zhirov | Zhirov warped through subspace 19935 | -4/Zhirov | Zhirov detonated his lab 19935 | -4/Zhirov | Cloak Generator disabled 20076 | -4/Zhirov | Found Prototype Device 20076 | -4/Zhirov | Identified Exp. Thermal Shield 20323 | -4/Zhirov | Build established: Scavenger-Mutant 20521 | -4/Zhirov | Entered Proximity Caves 20523 | -3/Proximity Caves | Attracted the attention of an 0b10 checkpoint 20809 | -3/Proximity Caves | Build established: Scavenger-Gunner 21197 | -3/Proximity Caves | Spotted B-86 Titan 21223 | -3/Proximity Caves | Destroyed B-86 Titan 21232 | -3/Proximity Caves | Build established: Scavenger-Tank 21483 | -3/Proximity Caves | Discovered new exit (range 9) 21499 | -3/Proximity Caves | Entered Research 21499 | -3/Research | Evolved 2 slots: Utility x2 21500 | -3/Research | Identified exit to Quarantine 21564 | -3/Research | Repaired Exp. Weapon Shielding 21672 | -3/Research | Lost 4 parts (1u3w) 21852 | -3/Research | Found Quantum Capacitor 21866 | -3/Research | Found Quantum Capacitor 21949 | -3/Research | Lost 3 parts (1p1u1w) 22066 | -3/Research | Found Unknown Launcher 22066 | -3/Research | Identified Gamma Bomb Array 22140 | -3/Research | Entered Quarantine 22219 | -3/Quarantine | Found Alien Artifact 22233 | -3/Quarantine | Identified Core Reset Matrix 22233 | -3/Quarantine | Identified Transdimensional Reconstructor 22233 | -3/Quarantine | Used Core Reset Matrix 22237 | -3/Quarantine | Detected hypermatrix surge 22237 | -3/Quarantine | Sensed 17 artifacts in vicinity 22277 | -3/Quarantine | Identified Vortex Chain Reactor 22285 | -3/Quarantine | Found Core Cannon 22364 | -3/Quarantine | Warped through subspace 22468 | -3/Quarantine | Build established: Hacker-Mutant 22490 | -3/Quarantine | Discovered new exit (range 8) 22520 | -3/Quarantine | Found Subatomic Replicator 22539 | -3/Quarantine | Central database locked down 22671 | -3/Quarantine | System corruption reached 10% 22762 | -3/Quarantine | Found Matter Drive 22798 | -3/Quarantine | Found Sigix Terminator 22811 | -3/Quarantine | Spotted Alpha 7 22850 | -3/Quarantine | Destroyed Alpha 7 22892 | -3/Quarantine | Found Prototype Ballistic Gun 22892 | -3/Quarantine | Identified Multirail 22939 | -3/Quarantine | First assault squad dispatched 23055 | -3/Quarantine | Found Phase Armor 23143 | -3/Quarantine | Found Core Stripper 23179 | -3/Quarantine | Found Hpw. Transdimensional Reconstructor 23182 | -3/Quarantine | Found Hpw. Transdimensional Reconstructor 23185 | -3/Quarantine | Found Transdimensional Reconstructor 23227 | -3/Quarantine | Found Transdimensional Reconstructor 23245 | -3/Quarantine | Found Dimensional Node Initializer 23248 | -3/Quarantine | Found Dimensional Node Initializer 23806 | -3/Quarantine | Spotted Fortress 23820 | -3/Quarantine | Destroyed Fortress 23827 | -3/Quarantine | Found Vortex Chain Reactor 23861 | -3/Quarantine | Found Prototype Device 23861 | -3/Quarantine | Identified EM Dispersion Field 23864 | -3/Quarantine | Found Prototype Device 23864 | -3/Quarantine | Identified Exp. Force Field 23878 | -3/Quarantine | Found Prototype Protection 23878 | -3/Quarantine | Identified Centrium Heavy Armor Plating 23910 | -3/Quarantine | Found Thermal Barrier 24031 | -3/Quarantine | Discovered new exit (range 6) 24039 | -3/Quarantine | Entered Section 7 24040 | -3/Section 7 | Sensed 23 artifacts in vicinity 24186 | -3/Section 7 | Build established: Hacker-Tank 24320 | -3/Section 7 | Found Integrity Redistributor 24575 | -3/Section 7 | Found Integrated Dissipator 24575 | -3/Section 7 | Installed Integrated Dissipator, increased core heat dissipation (+20) 24601 | -3/Section 7 | System corruption reached 30% 24627 | -3/Section 7 | Used Integrity Redistributor, redistributed integrity from core (-395) 24628 | -3/Section 7 | Emitted hypermatrix ping 24628 | -3/Section 7 | Core integrity fell below 50% 24633 | -3/Section 7 | Assembled emerged from beneath the floor 24854 | -3/Section 7 | Discovered new exit (range 6) 24868 | -3/Section 7 | Found Integrated Reactor 24868 | -3/Section 7 | Installed Integrated Reactor, increased core energy generation (+10) 24894 | -3/Section 7 | Spotted S7 Guard 24916 | -3/Section 7 | Destroyed S7 Guard 24926 | -3/Section 7 | Found Prototype Protection 24938 | -3/Section 7 | Used Subatomic Replicator to replicate Integrated Singularity Reactor 24940 | -3/Section 7 | Found Integrated Singularity Reactor 24940 | -3/Section 7 | Installed Integrated Singularity Reactor, increased core energy generation (+20) 24943 | -3/Section 7 | Installed Integrated Singularity Reactor, increased core energy generation (+20) 24945 | -3/Section 7 | Identified Hvy. Regenerative Plating 25014 | -3/Section 7 | Found Integrity Redistributor 25069 | -3/Section 7 | Initialized slip node 25130 | -3/Section 7 | Build established: Alien-Mutant 25248 | -3/Section 7 | Spotted Alpha 7 25250 | -3/Section 7 | Spotted Alpha 7 25328 | -3/Section 7 | Destroyed Alpha 7 25368 | -3/Section 7 | Found Multirail 25393 | -3/Section 7 | Destroyed Alpha 7 25408 | -3/Section 7 | Found Multirail 25452 | -3/Section 7 | Warped through subspace to slip node 25453 | -3/Section 7 | Core integrity fell below 20% 25459 | -3/Section 7 | Entered Research 25459 | -2/Research | Warlord forces began assault on 0b10 25459 | -2/Research | Evolved 2 slots: Propulsion x2 25569 | -2/Research | Research machine network offline 25760 | -2/Research | Build established: Scavenger-Tank 25902 | -2/Research | Discovered new exit (range 8) 25933 | -2/Research | Entered Access 25933 | -1/Access | Evolved 2 slots: Utility x2 26486 | -1/Access | Spotted B-99 Colossus 26493 | -1/Access | Destroyed 7 combat bots 26573 | -1/Access | Destroyed B-99 Colossus 26617 | -1/Access | Found Multirail 26623 | -1/Access | Found Multirail 26649 | -1/Access | System corruption reached 10% 26683 | -1/Access | First assault squad dispatched 27345 | -1/Access | Destroyed 8 combat bots 27393 | -1/Access | Identified exit to Command 27399 | -1/Access | Destroyed 7 combat bots 27714 | -1/Access | Found Prototype Launcher 27714 | -1/Access | Identified Adv. Micro-nuke Launcher 27718 | -1/Access | Found Adv. Micro-nuke Launcher 27745 | -1/Access | High security lockdown imminent 27784 | -1/Access | Destroyed 7 combat bots 27825 | -1/Access | High security lockdown engaged 27836 | -1/Access | Crushed by falling debris 27847 | -1/Access | Fired Sigix Terminator 27847 | -1/Access | Spotted B-99 Colossus 27847 | -1/Access | Destroyed B-99 Colossus 27868 | -1/Access | Destroyed 11 combat bots 27877 | -1/Access | Entered Command 27882 | -1/Command | Used Integrity Redistributor, redistributed integrity from core (-222) 27931 | -1/Command | High security lockdown imminent 27946 | -1/Command | Spotted B-99 Colossus 28011 | -1/Command | High security lockdown engaged 28066 | -1/Command | Spotted Striker 28087 | -1/Command | Destroyed Striker 28144 | -1/Command | Destroyed 19 combat bots 28169 | -1/Command | Spotted Investigator 28191 | -1/Command | Build established: Alien-Tank 28199 | -1/Command | Scanned by Researcher 28217 | -1/Command | Destroyed Investigator 28263 | -1/Command | Destroyed 14 combat bots 28297 | -1/Command | Spotted Executioner 28297 | -1/Command | Spotted Striker 28297 | -1/Command | Spotted Striker 28298 | -1/Command | Spotted Executioner 28303 | -1/Command | Spotted Executioner 28306 | -1/Command | Destroyed Striker 28309 | -1/Command | Destroyed Striker 28312 | -1/Command | Destroyed Executioner 28315 | -1/Command | Destroyed Executioner 28315 | -1/Command | Destroyed Executioner 28345 | -1/Command | Destroyed 29 combat bots 28483 | -1/Command | Spotted Combat Programmer 28483 | -1/Command | Spotted M Guard 28486 | -1/Command | Spotted Combat Programmer 28491 | -1/Command | Destroyed M Guard 28501 | -1/Command | Destroyed M Guard 28529 | -1/Command | Spotted Striker 28529 | -1/Command | Spotted Executioner 28534 | -1/Command | Destroyed Striker 28543 | -1/Command | Destroyed Executioner 28549 | -1/Command | Destroyed Combat Programmer 28550 | -1/Command | Spotted Striker 28553 | -1/Command | System corruption reached 30% 28556 | -1/Command | Spotted Executioner 28560 | -1/Command | Spotted Striker 28560 | -1/Command | Spotted Striker 28570 | -1/Command | Destroyed 17 combat bots 28575 | -1/Command | Destroyed Executioner 28578 | -1/Command | Destroyed Striker 28585 | -1/Command | Core integrity fell below 50% 28601 | -1/Command | Destroyed 9 combat bots 28606 | -1/Command | Destroyed Combat Programmer 28606 | -1/Command | All MAIN.C guards destroyed 28641 | -1/Command | Found Prototype Reactor 28641 | -1/Command | Identified Zero-point Reactor 28643 | -1/Command | Lost 25 parts (2p4n7u12w) 28650 | -1/Command | Found Hvy. Regenerative Plating 28655 | -1/Command | Found Zero-point Reactor 28660 | -1/Command | Found Prototype Device 28660 | -1/Command | Identified AEGIS Remote Shield 28669 | -1/Command | Found Prototype Launcher 28669 | -1/Command | Identified Adv. Micro-nuke Launcher 28673 | -1/Command | Found Prototype Energy Cannon 28673 | -1/Command | Identified Cld. Nova Cannon 28677 | -1/Command | Found Adv. Micro-nuke Launcher 28688 | -1/Command | Found Hvy. Regenerative Plating 28691 | -1/Command | Found AEGIS Remote Shield 28767 | -1/Command | Spotted Executioner 28767 | -1/Command | Spotted Executioner 28769 | -1/Command | Spotted Investigator 28771 | -1/Command | Destroyed Investigator 28774 | -1/Command | Destroyed Executioner 28777 | -1/Command | Spotted Striker 28777 | -1/Command | Spotted Striker 28777 | -1/Command | Spotted Striker 28777 | -1/Command | Destroyed Striker 28777 | -1/Command | Spotted Executioner 28783 | -1/Command | Destroyed Striker 28786 | -1/Command | Destroyed Executioner 28796 | -1/Command | Destroyed Striker 28797 | -1/Command | Spotted Striker 28803 | -1/Command | Emitted hypermatrix ping 28806 | -1/Command | Spotted Striker 28806 | -1/Command | Spotted Striker 28806 | -1/Command | Spotted Striker 28808 | -1/Command | Assembled emerged from beneath the floor 28811 | -1/Command | Allies destroyed Striker 28817 | -1/Command | Destroyed 29 combat bots 28817 | -1/Command | Allies destroyed Striker 28820 | -1/Command | Spotted Executioner 28825 | -1/Command | Rewired Striker 28826 | -1/Command | Destroyed Striker 28833 | -1/Command | Allies destroyed Executioner 28921 | -1/Command | Met MAIN.C 28922 | -1/Command | Build established: Scavenger-Mutant 29008 | -1/Command | 0b10 Conduit disabled 29036 | -1/Command | Destroyed MAIN.C Shell 29038 | -1/Command | MAIN.C activated Command garrisons 29111 | -1/Command | Core integrity fell below 20% 29122 | -1/Command | Lost 8 parts (1p2n3u2w) 29123 | -1/Command | Destroyed by P-80 Master with Gamma Rifle Last Messages --------------- 29091_ Knocked back. 29093_ System corrupted: Lgt. Antimatter Cannon targeting data glitched. 29094_ System corrupted: Exp. Coolant Injector rejected. 29095_ System corrupted: Lgt. Antimatter Cannon targeting data glitched. 29101_ System corrupted: Lgt. Antimatter Cannon targeting data glitched. 29107_ System corrupted: Lgt. Antimatter Cannon targeting data glitched. 29110_ Knocked back. 29111_ System corrupted: Lgt. Antimatter Cannon jammed. 29113_ System corrupted: Zero-point Reactor rejected. 29113_ MAIN.C suffers critical hit. 29113_ Destroyed Prototype Ballistic Gun. 29113_ Knocked back. 29115_ System corrupted: Lgt. Antimatter Cannon targeting data glitched. 29116_ Knocked back. 29117_ System corrupted: Lgt. Antimatter Cannon targeting data glitched. 29121_ MAIN.C knocked back. 29123_ System corrupted: Lgt. Antimatter Cannon targeting data glitched. Map ----- +----------------------------------------------------+ | ?????????????????????????????????????????????????? | | ?????????????????????????????????????????????????? | | ?????????????????????????????????????????????????? | | ?????????????????????????????????????????????????? | | ?????????????????????????????????????????????????? | | ?????????????????????????????????????????????????? | | ?????????????????????????????????????????????????? | | ?????????????????????????????????????????????????? | | ?????????????????????????????????????????????????? | | ?????????????????????????????????????????????????? | | ?????????????????????????????????????????????????? | | ?????????????????????????????????????????????????? | | ?????????????????????????????????????????????????? | | ?????????????????????????????????????????????????? | | ?????????????????????????????????????????????????? | | ?????????????????????????????????????????????????? | | ?????????????????????###################?????????? | | ?????????????????????"""" """" #?????????? | | ????????????????????? "" ##????????? | | ?????????????????#""""" "" "########## | | ?????????????????#""""""""""" / | | ?????????????????#" " """ /% | | ?????????????????#"" "" * p | | ????????????????##" "" ########### | | ????????????????#; #?????????? | | ?????????????????# @ *! M #?????????? | | ????????????????#; % "#?????????? | | ????????????????##" """ " """#?????????? | | ?????????????????#" """"""""#?????????? | | ?????????????????# """""""""""#?????????? | | ?????????????????# " " " " #?????????? | | ?????????????????# " " " " #?????????? | | ?????????????????" " " " """" "???????????? | | ?????????????????" """ " " """"???????????? | | ?????????????????" " " " ???????????????? | | ?????????????????# """""""""" ???????????????? | | ?????????????????# " """ " """???????????????? | | ?????????????????# ? ??? "??" ????????????????? | | ??????????????????##??????##?????????????????????? | | ?????????????????????????????????????????????????? | | ?????????????????????????????????????????????????? | | ?????????????????????????????????????????????????? | | ?????????????????????????????????????????????????? | | ?????????????????????????????????????????????????? | | ?????????????????????????????????????????????????? | | ?????????????????????????????????????????????????? | | ?????????????????????????????????????????????????? | | ?????????????????????????????????????????????????? | | ?????????????????????????????????????????????????? | | ?????????????????????????????????????????????????? | +----------------------------------------------------+ Best States ------------- Heat Dissipation 148 Coolant Potential 240 Energy Generation 121 Energy Capacity 2380 Matter Stores 427 Matter Capacity 800 Sight Range 16 Robot Scan Range 30 Terrain Scan Density 10 Jamming Range 22 EM Shielding 2 Armor Coverage 2700 Resistance: KI 40 Resistance: TH 50 Resistance: EM 75 Core Shielding 20 Propulsion Shielding 33 Weapon Shielding 90 Weapon Cycling 25 Evasion (%) 50 Core Analysis 15 Armor Integrity Analysis 66 Recoil Reduction 6 Matter Filtering 50 Kinecelleration 40 Offensive Hacking 50 Defensive Hacking 20 Item Schematics ----------------- Centrium Medium Armor Plating | -3/Quarantine | Scanalyzed Robot Schematics ------------------ None Fabricated ------------ Exp. Terrain Scan Processor | x1 | -5/Factory Exp. Transmission Jammer | x1 | -4/Factory Alien Tech Used ----------------- Integrated Reactor Core Reset Matrix Transdimensional Reconstructor Core Cannon Matter Drive Phase Armor Core Stripper Integrated Dissipator Integrity Redistributor Subatomic Replicator Integrated Singularity Reactor Dimensional Node Initializer Sigix Terminator Achievements -------------- None Challenges ------------ None Game ------ Seed ShockQuantumAccelerator Manual? 0 Play Time 03:52:26 Cumulative 449.6 hours Start 2021.06.12 @ 07:19:53 End 2021.06.12 @ 12:16:22 Sessions 1 Manual Loads 0 Difficulty Rogue Special Mode None Game No. 339 Rogue 332 Adventurer 0 Explorer 7 Win Type - Total 21 Types 8/2/9/1/0/0/0/1/0 Lore% 82 Gallery% 94 Achievement% 78 Wizard Run 0 Options --------- ASCII 0 Keyboard 0 Movement Numpad Keybinds 0 Fullscreen 1 Font 18/X11Bold Map View 76x50 Tactical HUD 1 Map Filters NONE Filters NONE Steam 1 RUN: 1276264c-ac6e-4b50-beaf-b85696129f40